Workbook

Sheet Мои данные
A1: СОГЛАСОВАНО | H1: УТВЕРЖДАЮ
A3: Смета на сумму 443 151,36 рублей с НДС | H3: Смета на сумму 443 151,36 рублей с НДС
A5: Директор ООО "УралГазСпектр" | H5: Генеральный директор АО "Челябинскгоргаз"
A6: ______________________/ А.С. Ядрешников / | H6: ________________________/ В.Г. Серадский /
A9: Стройка:Газопровод низкого давления от точки подключения до границы земельного участка по адресу:Челябинская область, Сосновский район, пос. Малая Сосновка, ул. Березовая, участок 74:19:0000000:15131. Технологическое присоединение.
A11: Объект:Газопровод низкого давления от точки подключения до границы земельного участка по адресу:Челябинская область, Сосновский район, пос. Малая Сосновка, ул. Березовая, участок 74:19:0000000:15131. Технологическое присоединение.
A12: ЛОКАЛЬНАЯ СМЕТА 1
A13: (локальный сметный расчет)
A14: на Газопровод низкого давления от точки подключения до границы земельного участка по адресу:Челябинская область, Сосновский район, пос. Малая Сосновка, ул. Березовая, участок 74:19:0000000:15131. Технологическое присоединение.
A15: Основание:Договор № 875-П от 08.11.2016 г.
G17: базисная цена | J17: текущая цена
D18: Сметная стоимость: | G18: =58426/1000 -> 58.426 | I18: тыс. руб. | J18: =375552*1.18 -> 443151.36 | U18: руб.
D19: в т.ч. оборудование | G19: =0/1000 -> 0 | I19: тыс. руб. | J19: =0/1000 -> 0 | U19: тыс. руб.
D20: монтажных работ | G20: =113/1000 -> 0.113 | I20: тыс. руб. | J20: =1059/1000 -> 1.059 | U20: тыс. руб.
D21: Hормативная трудоемкость: | G21: =(V21+V22)/1000 -> 0.51864 | I21: тыс.чел.ч | J21: =(W21+W22)/1000 -> 0.51864 | U21: тыс.чел.ч | V21: 485.27 | W21: 485.27 | X21: 5484 | Y21: 5245 | Z21: 3167
D22: Сметная заработная плата: | G22: =5484/1000 -> 5.484 | I22: тыс. руб. | J22: =68978/1000 -> 68.978 | U22: тыс. руб. | V22: 33.37 | W22: 33.37 | X22: 68978 | Y22: 56159 | Z22: 31820
A23: ="Составлена в базисных ценах на 01.2000 г. и текущих ценах на " & IF(LEN(L23)>3,MID(L23,4,LEN(L23)),L23) -> Составлена в базисных ценах на 01.2000 г. и текущих ценах на | D23: 2 кв. 2018 г.
A24: № пп | B24: Код норматива, Наименование, Единица измерения | C24: Объем | D24: Базисная стоимость за единицу | G24: Базисная стоимость всего | J24: Текущая стоимость всего
D25: Всего | E25: Осн. З/п | F25: Эксп. | G25: Всего | H25: Осн. З/п | I25: Эксп. | J25: Всего | K25: Осн. З/п | U25: Эксп.
E26: Материал | F26: В т.ч. з/п | H26: Материал | I26: В т.ч. з/п | K26: Материал | U26: В т.ч. з/п
A27: 1 | B27: 2 | C27: 3 | D27: 4 | E27: 5 | F27: 6 | G27: 7 | H27: 8 | I27: 9 | J27: 10 | K27: 11 | U27: 12
A28: Раздел 1. ПОДГОТОВИТЕЛЬНЫЕ РАБОТЫ, БЛАГОУСТРОЙСТВО
A29: Снятие и восстановление асфальтобетонного покрытия, s=6 м2
A30: 1 | B30: ТЕР27-03-008-04 Разборка покрытий и оснований: асфальтобетонных 100 м3 конструкций | C30: 0,0042 (6*0.07) / 100 | D30: 5022.61 | E30: 1889.7 | F30: 3132,91 _____ 561,25 | G30: 21 | H30: 8 | I30: 13 _____ 2 | J30: 186 | K30: 100 | U30: 86 _____ 30
A31: 2 | B31: ТЕР27-03-008-02 Разборка покрытий и оснований: щебеночных 100 м3 конструкций | C31: 0,0138 (6*(0.19+0.04)) / 100 | D31: 601.35 | E31: 130.35 | F31: 471 _____ 60,83 | G31: 8 | H31: 2 | I31: 6 _____ 1 | J31: 66 | K31: 23 | U31: 43 _____ 11
A32: 3 | B32: ТЕР27-04-001-02 Возвращение щебеночного покрытия. - Устройство подстилающих и выравнивающих слоев оснований: из песчано-гравийной смеси, дресвы 100 м3 материала основания (в плотном теле) | C32: 0,009 (6*0.15) / 100 | D32: 2674.67 | E32: 159,4 _____ 21,77 | F32: 2493,5 _____ 227,33 | G32: 24 | H32: 1 _____ 1 | I32: 22 _____ 2 | J32: 139 | K32: 18 _____ 1 | U32: 120 _____ 26
A33: 4 | B33: ТЕР27-04-005-01 Устройство оснований толщиной 15 см из щебня фракции 40-70 мм при укатке каменных материалов с пределом прочности на сжатие свыше 98,1 МПа (1000 кгс/см2): однослойных 1000 м2 основания | C33: 0,006 6 / 1000 | D33: 31936.21 | E33: 385,21 _____ 25872,3 | F33: 5678,7 _____ 793,73 | G33: 192 | H33: 2 _____ 156 | I33: 34 _____ 5 | J33: 943 | K33: 29 _____ 705 | U33: 209 _____ 60
A34: 5 | B34: ТЕР27-04-005-04 На каждый 1 см изменения толщины слоя добавлять или исключать к расценкам 27-04-005-01, 27-04-005-02, 27-04-005-03 1000 м2 основания | C34: 0,024 (6*4) / 1000 | D34: 1855.1 | E34: _____ 1587,6 | F34: 267,5 _____ 36,45 | G34: 45 | H34: _____ 39 | I34: 6 _____ 1 | J34: 208 | K34: _____ 170 | U34: 38 _____ 11
A35: 6 | B35: ТЕР27-06-024-01 Укладка и полупропитка с применением битума: щебеночных покрытий толщиной 5 см покрытия и основания 1000 м2 покрытия и основания | C35: 0,006 6 / 1000 | D35: 34167 | E35: 667,51 _____ 31055,64 | F35: 2443,85 _____ 325,09 | G35: 205 | H35: 4 _____ 186 | I35: 15 _____ 2 | J35: 906 | K35: 50 _____ 769 | U35: 87 _____ 25
A36: 7 | B36: ТЕР27-06-024-03 На каждый 1 см изменения толщины щебеночных покрытий или оснований добавлять или исключать к расценкам 27-06-024-01, 27-06-024-02 покрытия и основания 1000 м2 покрытия и основания | C36: -0,006 -6 / 1000 | D36: 4830.72 | E36: 3,33 _____ 4721,1 | F36: 106,29 _____ 16,03 | G36: -29 | H36: _____ -28 | I36: -1 | J36: -119 | K36: _____ -115 | U36: -4 _____ -1
A37: 8 | B37: ТЕР27-06-020-01 Устройство покрытия толщиной 4 см из горячих асфальтобетонных смесей плотных мелкозернистых типа АБВ, плотность каменных материалов: 2,5-2,9 т/м3 1000 м2 покрытия | C37: 0,006 6 / 1000 | D37: 3218.43 | E37: 465,73 _____ 245,3 | F37: 2507,4 _____ 317,68 | G37: 19 | H37: 3 _____ 1 | I37: 15 _____ 2 | J37: 137 | K37: 35 _____ 11 | U37: 91 _____ 24
A38: 9 | B38: ТЕР27-06-021-01 На каждые 0,5 см изменения толщины покрытия добавлять или исключать: к расценке 27-06-020-01 1000 м2 покрытия | C38: 0,036 (6,0*6) / 1000 | D38: 8.92 | E38: 1,09 _____ 4,24 | F38: 3.59 | J38: 2 | K38: _____ 2
A39: 10 | B39: ТССЦ-410-0006 Асфальтобетонные смеси дорожные, аэродромные и асфальтобетон (горячие и теплые для плотного асфальтобетона мелко и крупнозернистые, песчаные), марка II, тип Б т | C39: 1.0152 | D39: 511 | E39: _____ 511 | G39: 519 | H39: _____ 519 | J39: 2508 | K39: _____ 2508
A40: Снятие и восстановление щебеночного покрытия (h=0,2м), s=58 м2
A41: 11 | B41: ТЕР27-03-008-02 Разборка покрытий и оснований: щебеночных 100 м3 конструкций | C41: 0,116 58*0.2/100 | D41: 601.35 | E41: 130.35 | F41: 471 _____ 60,83 | G41: 70 | H41: 15 | I41: 55 _____ 7 | J41: 552 | K41: 190 | U41: 362 _____ 89
A42: 12 | B42: ТЕР27-04-007-02 Устройство оснований толщиной 15 см из щебня фракции 40-70 мм при укатке каменных материалов с пределом прочности на сжатие до 68,6 МПа (700 кгс/см2): верхнего слоя двухслойных 1000 м2 основания | C42: 0,058 58 / 1000 | D42: 29962.21 | E42: 378,39 _____ 25026,3 | F42: 4557,52 _____ 596,8 | G42: 1738 | H42: 22 _____ 1452 | I42: 264 _____ 35 | J42: 8306 | K42: 276 _____ 6478 | U42: 1552 _____ 436
A43: 13 | B43: ТЕР27-04-007-04 На каждый 1 см изменения толщины слоя добавлять или исключать к расценкам 27-04-007-01, 27-04-007-02, 27-04-007-03 1000 м2 основания | C43: 0,29 (58*5) / 1000 | D43: 1804.7 | E43: _____ 1537,2 | F43: 267,5 _____ 36,45 | G43: 523 | H43: _____ 445 | I43: 78 _____ 11 | J43: 2413 | K43: _____ 1960 | U43: 453 _____ 133
A44: 14 | B44: ТССЦпг-01-01-01-034 Погрузочные работы при автомобильных перевозках: щебня (выгрузка учитывает затраты на штабелирование) 1 т груза | C44: 20,3 58*0.2*1.75 | D44: 4.12 | F44: 4.12 | G44: 84 | I44: 84 | J44: 606 | U44: 606
A45: 15 | B45: ТССЦпг-03-21-01-005 Перевозка грузов автомобилями-самосвалами грузоподъемностью 10 т, работающих вне карьера, на расстояние: до 5 км I класс груза 1 т груза | C45: 20,3 58*0.2*1.75 | D45: 8.33 | F45: 8.33 | G45: 169 | I45: 169 | J45: 794 | U45: 794
A46: Итого по разделу 1 ПОДГОТОВИТЕЛЬНЫЕ РАБОТЫ, БЛАГОУСТРОЙСТВО | G46: 3885 | J46: 20730
A47: Раздел 2. ЗЕМЛЯНЫЕ РАБОТЫ
A48: Снятие и восстановление почвенно-растительного слоя (h=0,6м), V=58 м3
A49: 16 | B49: ТЕР01-02-057-01 Снятие почвенного чернозема - Разработка грунта вручную в траншеях глубиной до 2 м без креплений с откосами, группа грунтов: 1 100 м3 грунта | C49: 0,58 58 / 100 | D49: 1163.48 | E49: 1163.48 | G49: 675 | H49: 675 | J49: 8498 | K49: 8498
A50: 17 | B50: ТЕР01-02-061-01 Восстановление почвенного чернозема - Засыпка вручную траншей, пазух котлованов и ям, группа грунтов: 1 100 м3 грунта | C50: 0,58 58 / 100 | D50: 838.98 | E50: 838.98 | G50: 487 | H50: 487 | J50: 6130 | K50: 6130
A51: Разработка грунта
A52: 18 | B52: ТЕР01-01-003-15 Разработка грунта в отвал экскаваторами «драглайн» или «обратная лопата» с ковшом вместимостью: 0,5 (0,5-0,63) м3, группа грунтов 3 1000 м3 грунта | C52: 0,198 (213-15) / 1000 | D52: 4775.44 | E52: 169.89 | F52: 4605,55 _____ 610,91 | G52: 946 | H52: 34 | I52: 912 _____ 121 | J52: 5942 | K52: 424 | U52: 5518 _____ 1523
A53: 19 | B53: ТЕР01-02-057-03 Подчистка дна траншеи приямков. Разработка грунта вручную в траншеях глубиной до 2 м без креплений с откосами, группа грунтов: 3 100 м3 грунта | C53: 0,15 15 / 100 | D53: 2445.28 | E53: 2445.28 | G53: 367 | H53: 367 | J53: 4619 | K53: 4619
A54: 20 | B54: ТЕР01-02-057-03 Разработка грунта вручную в траншеях глубиной до 2 м без креплений с откосами, группа грунтов: 3 100 м3 грунта | C54: 0,53 53 / 100 | D54: 2445.28 | E54: 2445.28 | G54: 1296 | H54: 1296 | J54: 16321 | K54: 16321
A55: 21 | B55: ТЕР23-01-001-01 Устройство основания под трубопроводы: песчаного н=0,1м 10 м3 основания 144,41 = 1 431,41 - 11 x 117,00 | C55: 1,8 18 / 10 | D55: 144.41 | E55: 105.37 | F55: 39,04 _____ 4,26 | G55: 260 | H55: 190 | I55: 70 _____ 8 | J55: 2723 | K55: 2390 | U55: 333 _____ 96
A56: 22 | B56: ТЕР01-02-061-02 Засыпка вручную газопровода крупнозернистым песчаным грунтом на h= 0.2 м выше трубы, группа грунтов: 2 100 м3 грунта | C56: 0,51 51 / 100 | D56: 921.46 | E56: 921.46 | G56: 470 | H56: 470 | J56: 5920 | K56: 5920
A57: 23 | B57: ТЕР01-02-061-02 Засыпка вручную траншей, песчаным грунтом с трамбованием на пересечении с коммуникациями, проездами и над стальными вставками, группа грунтов: 2 100 м3 грунта | C57: 0,07 7 / 100 | D57: 921.46 | E57: 921.46 | G57: 65 | H57: 65 | J57: 813 | K57: 813
A58: 24 | B58: ТССЦ-408-0122 Песок природный для строительных работ средний м3 | C58: 83,6 (18+51+7)*1,1 | D58: 117 | E58: _____ 117 | G58: 9781 | H58: _____ 9781 | J58: 28130 | K58: _____ 28130
A59: 25 | B59: ТЕР01-01-033-03 Засыпка траншей местным грунтом с послойным трамбованием, с перемещением грунта до 5 м бульдозерами мощностью: 59 кВт (80 л.с.), группа грунтов 3 1000 м3 грунта | C59: 0,19 190 / 1000 | D59: 739.81 | F59: 739,81 _____ 145,25 | G59: 141 | I59: 141 _____ 28 | J59: 1236 | U59: 1236 _____ 347
A60: 26 | B60: ТЕР01-02-005-02 Уплотнение грунта пневматическими трамбовками, группа грунтов: 3-4 100 м3 уплотненного грунта | C60: 1,9 190 / 100 | D60: 399.93 | E60: 161.27 | F60: 238,66 _____ 44,14 | G60: 760 | H60: 306 | I60: 454 _____ 84 | J60: 6847 | K60: 3861 | U60: 2986 _____ 1056
A61: 27 | B61: ТССЦпг-01-01-01-039 Погрузочные работы при автомобильных перевозках: грунта растительного слоя (земля, перегной) 1 т груза | C61: 148,2 76*1,95 | D61: 4.98 | F61: 4.98 | G61: 738 | I61: 738 | J61: 5347 | U61: 5347
A62: 28 | B62: ТЕР01-01-016-02 Работа на отвале, группа грунтов: 2-3 1000 м3 грунта | C62: 0,076 76 / 1000 | D62: 398.5 | E62: 35,99 _____ 4,88 | F62: 357,63 _____ 64,83 | G62: 30 | H62: 3 | I62: 27 _____ 5 | J62: 259 | K62: 34 _____ 2 | U62: 223 _____ 62
A63: 29 | B63: ТССЦпг-03-21-01-005 Перевозка грузов автомобилями-самосвалами грузоподъемностью 10 т, работающих вне карьера, на расстояние: до 5 км I класс груза 1 т груза | C63: 148,2 76*1,95 | D63: 8.33 | F63: 8.33 | G63: 1235 | I63: 1235 | J63: 5799 | U63: 5799
A64: Итого по разделу 2 ЗЕМЛЯНЫЕ РАБОТЫ | G64: 22727 | J64: 155943
A65: Раздел 3. ПРОКЛАДКА ПЭ УЧАСТКОВ ГАЗОПРОВОДА Ф90х8,2 мм
A66: 30 | B66: ТЕР24-02-031-02 Укладка газопроводов из полиэтиленовых труб в траншею со стационарно установленного барабана, диаметр газопровода: Ф90х8,2 мм 100 м укладки | C66: 1,98 198 / 100 | D66: 178.27 | E66: 80,76 _____ 20,75 | F66: 76.76 | G66: 353 | H66: 160 _____ 41 | I66: 152 | J66: 2365 | K66: 2014 _____ 96 | U66: 255
A67: 31 | B67: ТССЦ-507-2057 Труба ПЭ 80 SDR 11, наружный диаметр 90 мм (ГОСТ Р 50838-95) 10 м | C67: 19,8 198 / 10 | D67: 870 | E67: _____ 870 | G67: 17226 | H67: _____ 17226 | J67: 108032 | K67: _____ 108032
A68: 32 | B68: ТЕРм10-06-048-05 Укладка сигнальной ленты "ГАЗ" (применительно- п. 1.10.98т.ч к ТЕРм 10 ) .Прокладка волоконно-оптических кабелей в траншее (ОЗП=0,3; ЭМ=0,3 к расх.; ЗПМ=0,3; МАТ=0,3 к расх.; ТЗ=0,3; ТЗМ=0,3) 1 км кабеля | C68: 0,206 206/1000 | D68: 500.21 | E68: 87,77 _____ 1,76 | F68: 410,69 _____ 41,06 | G68: 103 | H68: 18 | I68: 85 _____ 8 | J68: 701 | K68: 228 _____ 4 | U68: 469 _____ 107
A69: 33 | B69: ТССЦ-507-3538 Лента сигнальная "Газ" ЛСГ 200 м | C69: 206 | D69: 0.3 | E69: _____ 0,3 | G69: 62 | H69: _____ 62 | J69: 239 | K69: _____ 239
A70: Установка ПЭ фасонных частей ф90х8,2 мм
A71: 34 | B71: ТЕР24-02-005-03 Установка отводов Ф90 - 1 шт., перехода на газопроводе ПЭ/ст. - 1 шт., заглушки -1 шт. на газопроводе из полиэтиленовых труб в горизонтальной плоскости, диаметр перехода: 90 мм шт. 64,02 = 315,02 - 1 x 251,00 | C71: 3 1+1+1 | D71: 64.02 | E71: 26,64 _____ 10,27 | F71: 27.11 | G71: 192 | H71: 80 _____ 31 | I71: 81 | J71: 1394 | K71: 1006 _____ 134 | U71: 254
A72: 35 | B72: ТЕР24-02-002-03 Сварка полиэтиленовых труб при помощи соединительных деталей с закладными нагревателями, диаметр труб: 90 мм 1 соединение 62,82 = 313,82 - 1 x 251,00 | C72: 4 | D72: 62.82 | E72: 27,76 _____ 6,32 | F72: 28.74 | G72: 251 | H72: 111 _____ 25 | I72: 115 | J72: 1872 | K72: 1398 _____ 110 | U72: 364
A73: 36 | B73: Прайс " ПОЛИПЛАСТИК УРАЛ" Переход <полиэтилен-сталь 90х89. ПЭ 100 ГАЗ SDR 11- 90/ст.89 " ПОЛИПЛАСТИК УРАЛ" Ст-ть: 1016/6,01=169,05 (МАТ=1,022 к расх.) шт. | C73: 1 | D73: 172.77 | E73: _____ 172,77 | G73: 173 | H73: _____ 173 | J73: 1038 | K73: _____ 1038
A74: 37 | B74: Прайс " ПОЛИПЛАСТИК УРАЛ" Отвод полиэтиленовый удлиненный ПЭ 100 ГАЗ 90 SDR 11, " ПОЛИПЛАСТИК УРАЛ" Ст-ть: 339/6,01=56,41 (МАТ=1,022 к расх.) шт. | C74: 1 | D74: 57.65 | E74: _____ 57,65 | G74: 58 | H74: _____ 58 | J74: 346 | K74: _____ 346
A75: 38 | B75: Прайс " ПОЛИПЛАСТИК УРАЛ" Заглушка удлиненная ПЭ100 ГАЗ 90 SDR 11. " ПОЛИПЛАСТИК УРАЛ" Ст-ть: 186/6,01=30,95 (МАТ=1,02 к расх.) шт. | C75: 1 | D75: 31.57 | E75: _____ 31,57 | G75: 32 | H75: _____ 32 | J75: 190 | K75: _____ 190
A76: 39 | B76: Прайс " ПОЛИПЛАСТИК УРАЛ" Муфта электросварная ПЭ 100 ГАЗ 90 SDR 11 . " ПОЛИПЛАСТИК УРАЛ" Ст-ть: 653/6,01=108,65 (МАТ=1,03 к расх.) шт. | C76: 4 | D76: 111.91 | E76: _____ 111,91 | G76: 448 | H76: _____ 448 | J76: 2690 | K76: _____ 2690
A77: Прокладка ПЭ газопровода ПЭ 90х8,2мм в ПЭ футляре 225х20,5 на пересечении с дорогой, длиной 10м
A78: 40 | B78: ТЕР24-02-034-02 Укладка газопроводов из одиночных полиэтиленовых труб в траншею, диаметр газопровода до 225 мм 100 м газопровода | C78: 0,1 10 / 100 | D78: 121.34 | E78: 25.54 | F78: 95,8 _____ 12,9 | G78: 12 | H78: 3 | I78: 9 _____ 1 | J78: 87 | K78: 31 | U78: 56 _____ 15
A79: 41 | B79: ТССЦ-507-3654 Труба напорная из полиэтилена PE 100 питьевая ПЭ100 SDR11, размером 225х20,5 мм (ГОСТ 18599-2001, ГОСТ Р 52134-2003) м | C79: 10 | D79: 385.7 | E79: _____ 385,7 | G79: 3857 | H79: _____ 3857 | J79: 18502 | K79: _____ 18502
A80: 42 | B80: ТЕР22-05-003-01 Протаскивание в футляр ПЭ труб диаметром Ф 90 мм 100 м трубы, уложенной в футляр | C80: 0,1 10 / 100 | D80: 2182.55 | E80: 1026,3 _____ 1111,06 | F80: 45.19 | G80: 218 | H80: 103 _____ 110 | I80: 5 | J80: 1981 | K80: 1292 _____ 665 | U80: 24
A81: 43 | B81: ТЕР22-05-004-01 Заделка битумом и прядью концов футляра диаметром, мм: Ф225Х20.5 мм (ОЗП=0,5; ЭМ=0,5 к расх.; ЗПМ=0,5; МАТ=0,5 к расх.; ТЗ=0,5; ТЗМ=0,5) 1 футляр | C81: 1 | D81: 124.91 | E81: 16,39 _____ 79,78 | F81: 28.74 | G81: 125 | H81: 16 _____ 80 | I81: 29 | J81: 655 | K81: 201 _____ 354 | U81: 100
A82: 44 | B82: ТЕР24-02-081-01 Устройство контрольной трубки на кожухе перехода газопровода 1 установка 339,64 = 437,71 - 1 x 95,73 - 0,02 x 117,00 | C82: 1 | D82: 339.64 | E82: 18,31 _____ 249,53 | F82: 71,8 _____ 4,08 | G82: 340 | H82: 18 _____ 250 | I82: 72 _____ 4 | J82: 2059 | K82: 231 _____ 1440 | U82: 388 _____ 51
A83: 45 | B83: ТССЦ-408-0122 Песок природный для строительных работ средний м3 | C83: 1.4 | D83: 117 | E83: _____ 117 | G83: 164 | H83: _____ 164 | J83: 471 | K83: _____ 471
A84: 46 | B84: ТССЦ-103-0139 Трубы стальные электросварные прямошовные со снятой фаской из стали марок БСт2кп-БСт4кп и БСт2пс-БСт4пс наружный диаметр 57 мм, толщина стенки 3,5 мм м | C84: 1.5 | D84: 30.2 | E84: _____ 30,2 | G84: 45 | H84: _____ 45 | J84: 294 | K84: _____ 294
A85: 47 | B85: ТЕР24-02-021-01 Изоляция комбинированным мастично-ленточным материалом типа ленты «Лиам» сварных стыков газопроводов условным диаметром 57 мм 1 м2 | C85: 0,27 0,18*1.5 | D85: 292.24 | E85: 23,4 _____ 180,68 | F85: 88,16 _____ 14,3 | G85: 79 | H85: 6 _____ 49 | I85: 24 _____ 4 | J85: 356 | K85: 77 _____ 147 | U85: 132 _____ 49
A86: 48 | B86: ТЕР24-02-005-02 Установка перехода ПЭ/ст ф 63/ст.57 мм на газопроводе из полиэтиленовых труб, диаметр отвода: 63 мм (Применительно) 1 отвод | C86: 1 | D86: 212.58 | E86: 16,54 _____ 180,9 | F86: 15.14 | G86: 213 | H86: 17 _____ 181 | I86: 15 | J86: 600 | K86: 208 _____ 345 | U86: 47
A87: 49 | B87: ТССЦ-507-0778 Переход «полиэтилен-сталь 63х57» шт. | C87: 1 | D87: 385 | E87: _____ 385 | G87: 385 | H87: _____ 385 | J87: 794 | K87: _____ 794
A88: 50 | B88: ТЕР24-02-007-04 Установка седловых отводов полиэтиленовых с закладными нагревателями на газопроводе из полиэтиленовых труб , диаметры соединяемых труб: 225х63 мм (Применительно) 1 соединение | C88: 1 | D88: 63.56 | E88: 34,03 _____ 5,53 | F88: 24 | G88: 64 | H88: 34 _____ 6 | I88: 24 | J88: 524 | K88: 428 _____ 24 | U88: 72
A89: 51 | B89: Прайс "Полипастик Урал " Седловой прямой отвод с закладными электронагревателями ПЭ 100; 225х63 мм, цена: 4408/6,01=733,44 (МАТ=1,0242 к расх.) шт. | C89: 1 | D89: 1102.01 | G89: 1102 | J89: 751 | K89: _____ 751
A90: 52 | B90: ТЕР11-01-002-09 Устройство отмостки коверов 1 м3 подстилающего слоя | C90: 0.19 | D90: 48.13 | E90: 38,8 _____ 9,08 | F90: 0.25 | G90: 9 | H90: 7 _____ 2 | J90: 102 | K90: 93 _____ 9
A91: 53 | B91: ТССЦ-401-0025 Бетон тяжелый, крупность заполнителя более 40 мм, класс В12,5 (М150) м3 | C91: 0.1938 | D91: 578 | E91: _____ 578 | G91: 112 | H91: _____ 112 | J91: 570 | K91: _____ 570
A92: Установка опозновательных столбов и табличек-указателей
A93: 54 | B93: ТЕР27-09-004-01 Установка столбиков сигнальных: железобетонных 100 шт. | C93: 0,02 2 / 100 | D93: 4815.97 | E93: 759,42 _____ 1010,46 | F93: 3046,09 _____ 349,22 | G93: 96 | H93: 15 _____ 20 | I93: 61 _____ 7 | J93: 658 | K93: 191 _____ 83 | U93: 384 _____ 88
A94: 55 | B94: ТССЦ-401-0023 Бетон тяжелый, крупность заполнителя более 40 мм, класс В7,5 (М 100) м3 | C94: 0,14 0.07*2 | D94: 538 | E94: _____ 538 | G94: 75 | H94: _____ 75 | J94: 384 | K94: _____ 384
A95: 56 | B95: ТССЦ-403-1220 Столбы оград 2С 24в /бетон В15 (М200), объем 0,05 м3, расход ар-ры 8,2 кг/ (серия 3.017-3) шт. | C95: 2 | D95: 169.39 | E95: _____ 169,39 | G95: 339 | H95: _____ 339 | J95: 2200 | K95: _____ 2200
A96: 57 | B96: ТЕР27-09-012-01 Установка табличек 100 знаков | C96: 0,04 4 / 100 | D96: 1232.94 | E96: 743,82 _____ 489,12 | G96: 49 | H96: 30 _____ 19 | J96: 528 | K96: 375 _____ 153
A97: Итого по разделу 3 ПРОКЛАДКА ПЭ УЧАСТКОВ ГАЗОПРОВОДА Ф90х8,2 мм | G97: 27582 | J97: 165026
A98: Раздел 4. ПРОКЛАДКА СТАЛЬНЫХ УЧАСТКОВ ГАЗОПРОВОДА НИЗКОГО ДАВЛЕНИЯ Ф89х3,5мм
A99: Укладка газопровода ф89х3,5мм в траншею в усиленной изоляции
A100: 58 | B100: ТЕР24-02-030-03 Укладка в траншею изолированных стальных газопроводов условным диаметром: до 100 мм 100 м трубопровода 1 657,81 = 12 035,56 - 101 x 102,75 | C100: 0,03 3 / 100 | D100: 1657.81 | E100: 330,42 _____ 14,98 | F100: 1312,41 _____ 139,29 | G100: 50 | H100: 10 _____ 1 | I100: 39 _____ 4 | J100: 349 | K100: 125 _____ 3 | U100: 221 _____ 53
A101: 59 | B101: ТССЦ-103-0154 Трубы стальные электросварные прямошовные со снятой фаской из стали марок БСт2кп-БСт4кп и БСт2пс-БСт4пс наружный диаметр 89 мм, толщина стенки 3,5 мм (МАТ=1,02 к расх.) м | C101: 3 | D101: 49.16 | E101: _____ 49,16 | G101: 147 | H101: _____ 147 | J101: 957 | K101: _____ 957
A102: 60 | B102: ТЕР24-02-021-01 Изоляция комбинированным мастично-ленточным материалом типа ленты «Лиам» сварных стыков газопроводов диаметром 89 мм 1 м2 | C102: 0,84 0,28*3.0 | D102: 292.24 | E102: 23,4 _____ 180,68 | F102: 88,16 _____ 14,3 | G102: 245 | H102: 20 _____ 151 | I102: 74 _____ 12 | J102: 1106 | K102: 239 _____ 456 | U102: 411 _____ 151
A103: 61 | B103: ТЕР13-08-007-01 Проверка состояния изоляционного покрытия подземных газопроводов. (Применительно) Проверка качества резинового покрытия 100 м2 поверхности | C103: 0,0054 0,18*3.0/100 | D103: 25.08 | E103: 25.08 | J103: 2 | K103: 2
A104: Устройство футляра ф133х4,0 мм на выходе газопровода ф89х3,5 мм из земли
A105: 62 | B105: ТЕР22-01-011-04 Укладка стальных водопроводных труб диаметром: 133 мм 1 км трубопровода | C105: 0,0006 0,6/1000 | D105: 11318.8 | E105: 5576,34 _____ 1544,44 | F105: 4198,02 _____ 726,5 | G105: 7 | H105: 3 _____ 1 | I105: 3 | J105: 64 | K105: 42 _____ 6 | U105: 16 _____ 5
A106: 63 | B106: ТССЦ-103-0922 Трубы стальные электросварные прямошовные со снятой фаской из стали марок БСт2кп-БСт4кп и БСт2пс-БСт4пс наружный диаметр 133 мм толщина стенки 4 мм м | C106: 0.6 | D106: 82.9 | E106: _____ 82,9 | G106: 50 | H106: _____ 50 | J106: 323 | K106: _____ 323
A107: 64 | B107: ТЕР22-05-003-02 Протаскивание в футляр стальных труб диаметром 133 мм 100 м трубы, уложенной в футляр | C107: 0,006 0.6 / 100 | D107: 2560.37 | E107: 1090,75 _____ 1422,37 | F107: 47.25 | G107: 15 | H107: 7 _____ 8 | J107: 134 | K107: 82 _____ 51 | U107: 1
A108: 65 | B108: ТЕР22-02-010-04 Нанесение весьма усиленной антикоррозионной изоляции из полимерных липких лент на стальные трубопроводы диаметром: 133 мм 1 км трубопровода | C108: 0,0006 0.6/1000 | D108: 34136.04 | E108: 2818,87 _____ 29954,08 | F108: 1363,09 _____ 133,88 | G108: 20 | H108: 2 _____ 17 | I108: 1 | J108: 78 | K108: 21 _____ 53 | U108: 4 _____ 1
A109: 66 | B109: ТССЦ-509-0068 Обертка защитная на полиэтиленовой основе «Полилен-0» м2 | C109: 0.318 | D109: 33.41 | E109: _____ 33,41 | G109: 11 | H109: _____ 11 | J109: 42 | K109: _____ 42
A110: 67 | B110: ТЕР22-05-004-01 Заделка битумом и прядью концов футляра диаметром 133 мм (ОЗП=0,3325; ЭМ=0,3325 к расх.; ЗПМ=0,3325; МАТ=0,3325 к расх.; ТЗ=0,3325; ТЗМ=0,3325) 1 футляр | C110: 1 | D110: 83.06 | E110: 10,9 _____ 53,05 | F110: 19.11 | G110: 83 | H110: 11 _____ 53 | I110: 19 | J110: 435 | K110: 133 _____ 236 | U110: 66
A111: Прокладка надземного газопровода ф89х3,5 мм длиной 4м
A112: 68 | B112: ТЕР24-02-041-03 Надземная прокладка стальных газопроводов на металлических опорах, условный диаметр газопровода: 80 мм 100 м газопровода | C112: 0,04 4 / 100 | D112: 2224.57 | E112: 252,68 _____ 317,46 | F112: 1654,43 _____ 209,45 | G112: 89 | H112: 10 _____ 13 | I112: 66 _____ 8 | J112: 547 | K112: 123 _____ 49 | U112: 375 _____ 105
A113: 69 | B113: ТССЦ-103-0154 Трубы стальные электросварные прямошовные со снятой фаской из стали марок БСт2кп-БСт4кп и БСт2пс-БСт4пс наружный диаметр 89 мм, толщина стенки 3,5 мм м | C113: 4 | D113: 48.2 | E113: _____ 48,2 | G113: 193 | H113: _____ 193 | J113: 1251 | K113: _____ 1251
A114: 70 | B114: ТЕР22-03-001-05 Установка фасонных частей стальных сварных диаметром 100-250 мм 1 т фасонных частей | C114: 0,0028 (2*1.4)/1000 | D114: 31686.43 | E114: 4960,28 _____ 14919,4 | F114: 11806,75 _____ 1684,6 | G114: 89 | H114: 14 _____ 42 | I114: 33 _____ 5 | J114: 748 | K114: 175 _____ 362 | U114: 211 _____ 59
A115: 71 | B115: ТЕР22-03-014-02 Приварка фланцев к стальным трубопроводам диаметром: 80 мм 1 фланец 49,25 = 110,15 - 1 x 60,90 | C115: 2 | D115: 49.25 | E115: 7,43 _____ 2,53 | F115: 39,29 _____ 5,72 | G115: 99 | H115: 15 _____ 5 | I115: 79 _____ 11 | J115: 724 | K115: 187 _____ 35 | U115: 502 _____ 144
A116: 72 | B116: ТССЦ-507-2836 Соединения изолирующие фланцевые на условное давление 0,6 мПа для труб диаметром до 100 мм компл. | C116: 1 | D116: 359.27 | E116: _____ 359,27 | G116: 359 | H116: _____ 359 | J116: 2393 | K116: _____ 2393
A117: 73 | B117: ТЕРм12-10-001-01 Бобышки, штуцеры на условное давление до 10 МПа 100 шт. | C117: 0,01 1/100 | D117: 3659.44 | E117: 795,26 _____ 2433,91 | F117: 430.27 | G117: 37 | H117: 8 _____ 25 | I117: 4 | J117: 432 | K117: 100 _____ 307 | U117: 25
A118: 74 | B118: ТЕРм08-02-472-07 Пластина для замера потенциалов.Проводник заземляющий открыто по строительным основаниям: из полосовой стали сечением 160 мм2 100 м | C118: 0,00165 0.165/100 | D118: 424.1 | E118: 253,26 _____ 85,18 | F118: 85,66 _____ 4,08 | G118: 1 | H118: 1 | J118: 7 | K118: 5 _____ 1 | U118: 1
A119: 75 | B119: ТССЦ-101-2548 Сталь полосовая 40х4 мм т | C119: 0,0001 0.1/1000 | D119: 6320 | E119: _____ 6320 | G119: 1 | H119: _____ 1 | J119: 4 | K119: _____ 4
A120: 76 | B120: ТЕР13-03-002-04 Огрунтовка металлических поверхностей за один раз: грунтовкой ГФ-021 100 м2 окрашиваемой поверхности | C120: 0,0112 0,28*4,0/100 | D120: 331.98 | E120: 71,47 _____ 250,36 | F120: 10,15 _____ 0,12 | G120: 4 | H120: 1 _____ 3 | J120: 20 | K120: 10 _____ 10
A121: 77 | B121: ТЕР13-03-004-26 Окраска металлических огрунтованных поверхностей эмалью ПФ-115 100 м2 окрашиваемой поверхности | C121: 0,0112 0,28*4,0/100 | D121: 439.21 | E121: 43,93 _____ 388,48 | F121: 6,8 _____ 0,12 | G121: 5 | H121: _____ 5 | J121: 23 | K121: 6 _____ 17
A122: Уплотнение вводов водопровода, канализации в цокольных (подвальных) этажах зданий
A123: 78 | B123: ТЕР16-07-006-02 Заделка сальников при проходе труб (водопровода и канализации)через фундаменты или стены подвала диаметром: до 200 мм 1 сальник | C123: 3 | D123: 80.44 | E123: 27,07 _____ 53,37 | G123: 241 | H123: 81 _____ 160 | J123: 1835 | K123: 989 _____ 846
A124: Итого по разделу 4 ПРОКЛАДКА СТАЛЬНЫХ УЧАСТКОВ ГАЗОПРОВОДА НИЗКОГО ДАВЛЕНИЯ Ф89х3,5мм | G124: 2221 | J124: 16348
A125: Раздел 5. ИСПЫТАНИЯ ГАЗОПРОВОДА НИЗКОГО ДАВЛЕНИЯ
A126: 79 | B126: ТЕРм39-02-015-04 Гаммаграфический контроль трубопровода через две стенки, диаметр трубопровода 89 мм, толщина стенки до 5 мм 1 снимок | C126: 1 | D126: 39.34 | E126: 15,51 _____ 6,75 | F126: 17.08 | G126: 39 | H126: 16 _____ 6 | I126: 17 | J126: 260 | K126: 195 _____ 17 | U126: 48
A127: 80 | B127: ТЕР13-08-007-01 Проверка состояния изоляционного покрытия подземных газопроводов. (Применительно) Проверка качества резинового покрытия 100 м2 поверхности | C127: 0,0084 0,28*3,0/100 | D127: 25.08 | E127: 25.08 | J127: 3 | K127: 3
A128: 81 | B128: ТЕР24-02-121-02 Монтаж инвентарного узла для очистки и испытания газопровода, условный диаметр газопровода: до 100 мм 1 узел | C128: 1 | D128: 188.48 | E128: 64,93 _____ 38,14 | F128: 85.41 | G128: 188 | H128: 65 _____ 38 | I128: 85 | J128: 1257 | K128: 817 _____ 136 | U128: 304
A129: 82 | B129: ТЕР24-02-120-02 Очистка полости трубопровода продувкой воздухом, условный диаметр газопровода: до 100 мм 100 м трубопровода | C129: 2,05 205 / 100 | D129: 17.54 | E129: 4.99 | F129: 12,55 _____ 2,43 | G129: 36 | H129: 10 | I129: 26 _____ 5 | J129: 301 | K129: 129 | U129: 172 _____ 63
A130: 83 | B130: ТЕР24-02-123-02 Подъем давления при испытании воздухом газопроводов высокого давления (до 0,6 МПа) условным диаметром до 100 мм 100 м газопровода | C130: 2,05 205 / 100 | D130: 7.79 | E130: 1.46 | F130: 6,33 _____ 0,73 | G130: 16 | H130: 3 | I130: 13 _____ 1 | J130: 125 | K130: 38 | U130: 87 _____ 19
A131: 84 | B131: ТЕР24-02-124-01 Выдержка под давлением до 0,6 МПа при испытании на прочность и герметичность стальных газопроводов условным диаметром 50-300 мм 1 участок испытания газопровода | C131: 1 | D131: 968.45 | E131: 170.24 | F131: 798,21 _____ 85,12 | G131: 968 | H131: 170 | I131: 798 _____ 85 | J131: 7533 | K131: 2143 | U131: 5390 _____ 1072
A132: Итого по разделу 5 ИСПЫТАНИЯ ГАЗОПРОВОДА НИЗКОГО ДАВЛЕНИЯ | G132: 2013 | J132: 17506
A133: Итого прямые затраты по смете | G133: 50014 | H133: 5015 _____ 37631 | I133: 6266 _____ 469 | J133: 287567 | K133: 63068 _____ 188241 | U133: 36258 _____ 5910
A134: Итого прямые затраты по смете с учетом коэффициентов к итогам | J134: 287573
A135: В том числе, справочно:
A136: Вспомогательные материалы МАТ=2%ОЗП (Поз. 73, 79) | J136: 6 | K136: _____ 6
A137: В том числе (справочно):
A138: фонд оплаты труда (ФОТ) | G138: 5484 | J138: 68978
A139: материалы | G139: 37631 | J139: 188247
A140: эксплуатация машин и механизмов | G140: 6266 | J140: 36258
A141: Накладные расходы | G141: 5245 | J141: 56159
A142: Сметная прибыль | G142: 3167 | J142: 31820
A143: ВСЕГО по смете
A144: Итого Строительные работы | G144: 58313 | J144: 374493
A145: Итого Монтажные работы | G145: 113 | J145: 1059
A146: Итого | G146: 58426 | J146: 375552
A147: ВСЕГО по смете | G147: 58426 | J147: 375552
A148: НДС 18 % | J148: =J147*18% -> 67599.36
A149: ИТОГО по смете | J149: =J148+J147 -> 443151.36
B152: Подготовил инженер - сметчик | E152: _____________________ /В.В. Артюхова/
B154: Начальник УСиИ | E154: _____________________ /В.О. Брябрин/

Sheet Ведомость ресурсов (hidden)
A2: Стройка:Газопровод низкого давления от точки подключения до границы земельного участка по адресу:Челябинская область, Сосновский район, пос. Малая Сосновка, ул. Березовая, участок 74:19:0000000:15131
A4: Объект:Газопровод низкого давления от точки подключения до границы земельного участка по адресу:Челябинская область, Сосновский район, пос. Малая Сосновка, ул. Березовая, участок 74:19:0000000:15131
A5: ЛОКАЛЬНЫЙ РЕСУРСНЫЙ СМЕТНЫЙ РАСЧЕТ 1
A6: (локальная смета)
A7: на 041.18 п.Малая Сосновка, ул.Березовая
A8: Основание:Договор № 875-П от 08.11.2016 г.
G10: базисная цена | J10: текущая цена
D11: Сметная стоимость: | G11: =58426/1000 -> 58.426 | I11: тыс. руб. | J11: =375552/1000 -> 375.552 | M11: тыс. руб.
D12: в т.ч. оборудование | G12: =0/1000 -> 0 | I12: тыс. руб. | J12: =0/1000 -> 0 | M12: тыс. руб.
D13: монтажных работ | G13: =113/1000 -> 0.113 | I13: тыс. руб. | J13: =1059/1000 -> 1.059 | M13: тыс. руб.
D14: Hормативная трудоемкость: | G14: =(O14+O15)/1000 -> 0.51864 | I14: тыс.чел.ч | J14: =(P14+P15)/1000 -> 0.51864 | L14: 5015 | M14: тыс.чел.ч | O14: 485.27 | P14: 485.27
D15: Сметная заработная плата: | G15: =5484/1000 -> 5.484 | I15: тыс. руб. | J15: =68978/1000 -> 68.978 | L15: 63068 | M15: тыс. руб. | O15: 33.37 | P15: 33.37
A16: ="Составлена в базисных ценах на 01.2000 г. и текущих ценах на " & IF(LEN(L16)>3,MID(L16,4,LEN(L16)),L16) -> Составлена в базисных ценах на 01.2000 г. и текущих ценах на | D16: 2 кв. 2018 г.
A17: № пп | B17: Код ресурса | C17: Наименование | D17: Единица измерения | E17: Количество единиц по проектным данным | F17: Сметная стоимость в базисных ценах (руб.) | H17: Стоимость в текущих ценах (руб.) | M17: Индекс для смт. цен | N17: Обоснование
D18: Кол-во механизаторов | H18: Отпускная | J18: Сметная
F19: на ед. изм. | G19: общая | H19: на ед. изм. | I19: общая | J19: на ед. изм. | K19: общая
A20: 1 | B20: 2 | C20: 3 | D20: 4 | E20: 5 | F20: 6 | G20: 7 | H20: 8 | I20: 9 | J20: 10 | K20: 11 | M20: 12 | N20: 13
A21: Ресурсы подрядчика
A22: Трудозатраты
A23: 1 | B23: 1-1-5 | C23: Рабочий строитель (ср 1,5) | D23: чел.час | E23: 107.7 | F23: 9,48 | G23: 1020.99 | J23: 119,43 | K23: 12862.61 | M23: =IF(ISNUMBER(K23/G23),IF(NOT(K23/G23=0),K23/G23, " "), " ") -> 12.59817432 | N23: МТРиЭ ЧО, Пост.от 17.05.2018 г. №28/1, п.504
A24: 2 | B24: 1-2-0 | C24: Рабочий строитель (ср 2) | D24: чел.час | E24: 242.48 | F24: 9,86 | G24: 2390.85 | J24: 124,17 | K24: 30108.73 | M24: 12.59331618 | N24: МТРиЭ ЧО, Пост.от 17.05.2018 г. №28/1, п.504
A25: 3 | B25: 1-2-3 | C25: Рабочий строитель (ср 2,3) | D25: чел.час | E25: 0.14 | F25: 10,14 | G25: 1.42 | J25: 127,69 | K25: 17.88 | M25: 12.5915493 | N25: МТРиЭ ЧО, Пост.от 17.05.2018 г. №28/1, п.504
A26: 4 | B26: 1-2-5 | C26: Рабочий строитель (ср 2,5) | D26: чел.час | E26: 20.7 | F26: 10,33 | G26: 213.83 | J26: 130,14 | K26: 2693.9 | M26: 12.59832577 | N26: МТРиЭ ЧО, Пост.от 17.05.2018 г. №28/1, п.504
A27: 5 | B27: 1-2-6 | C27: Рабочий строитель (ср 2,6) | D27: чел.час | E27: 0.38 | F27: 10,42 | G27: 3.96 | J27: 131,21 | K27: 49.86 | M27: 12.59090909 | N27: МТРиЭ ЧО, Пост.от 17.05.2018 г. №28/1, п.504
A28: 6 | B28: 1-2-7 | C28: Рабочий строитель (ср 2,7) | D28: чел.час | E28: 0.76 | F28: 10,51 | G28: 7.99 | J28: 132,29 | K28: 100.54 | M28: 12.58322904 | N28: МТРиЭ ЧО, Пост.от 17.05.2018 г. №28/1, п.504
A29: 7 | B29: 1-2-8 | C29: Рабочий строитель (ср 2,8) | D29: чел.час | E29: 0.7 | F29: 10,6 | G29: 7.42 | J29: 133,31 | K29: 93.32 | M29: 12.57681941 | N29: МТРиЭ ЧО, Пост.от 17.05.2018 г. №28/1, п.504
A30: 8 | B30: 1-2-9 | C30: Рабочий строитель (ср 2,9) | D30: чел.час | E30: 1.42 | F30: 10,69 | G30: 15.18 | J30: 134,38 | K30: 190.82 | M30: 12.57048748 | N30: МТРиЭ ЧО, Пост.от 17.05.2018 г. №28/1, п.504
A31: 9 | B31: 1-3-0 | C31: Рабочий строитель (ср 3)... | D31: чел.час | E31: 31.18 | F31: 10,78 | G31: 336.12 | J31: 135,81 | K31: 4234.56 | M31: 12.59835773 | N31: МТРиЭ ЧО, Пост.от 17.05.2018 г. №28/1, п.504
A32: 10 | B32: 1-3-0 | C32: - Рабочий строитель (ср 3) | D32: чел.час | E32: 2.76 | F32: 10,78 | G32: 29.75 | J32: 135,81 | K32: 374.84 | M32: 12.59966387 | N32: МТРиЭ ЧО, Пост.от 17.05.2018 г. №28/1, п.504
A33: 11 | B33: 1-3-0 | C33: - Рабочий строитель (ср 3) | D33: чел.час | E33: 28.42 | F33: 10,78 | G33: 306.37 | J33: 135,81 | K33: 3859.72 | M33: 12.5982309 | N33: МТРиЭ ЧО, Пост.от 17.05.2018 г. №28/1, п.504
A34: 12 | B34: 1-3-2 | C34: Рабочий строитель (ср 3,2) | D34: чел.час | E34: 0.03 | F34: 11,05 | G34: 0.33 | J34: 139,18 | K34: 4.17 | M34: 12.63636364 | N34: МТРиЭ ЧО, Пост.от 17.05.2018 г. №28/1, п.504
A35: 13 | B35: 1-3-3 | C35: Рабочий строитель (ср 3,3) | D35: чел.час | E35: 0.23 | F35: 11,2 | G35: 2.58 | J35: 134,48 | K35: 30.93 | M35: 11.98837209 | N35: МТРиЭ ЧО, Пост.от 17.05.2018 г. №28/1, п.504
A36: 14 | B36: 1-3-4 | C36: Рабочий строитель (ср 3,4)... | D36: чел.час | E36: 2.41 | F36: 11,34 | G36: 27.33 | J36: 138,87 | K36: 334.68 | M36: 12.24588364 | N36: МТРиЭ ЧО, Пост.от 17.05.2018 г. №28/1, п.504
A37: 15 | B37: 1-3-4 | C37: - Рабочий строитель (ср 3,4) | D37: чел.час | E37: 0.96 | F37: 11,34 | G37: 10.89 | J37: 138,87 | K37: 133.32 | M37: 12.24242424 | N37: МТРиЭ ЧО, Пост.от 17.05.2018 г. №28/1, п.504
A38: 16 | B38: 1-3-4 | C38: - Рабочий строитель (ср 3,4) | D38: чел.час | E38: 1.45 | F38: 11,34 | G38: 16.44 | J38: 138,87 | K38: 201.36 | M38: 12.24817518 | N38: МТРиЭ ЧО, Пост.от 17.05.2018 г. №28/1, п.504
A39: 17 | B39: 1-3-5 | C39: Рабочий строитель (ср 3,5)... | D39: чел.час | E39: 10.26 | F39: 11,47 | G39: 117.68 | J39: 139,76 | K39: 1433.94 | M39: 12.18507818 | N39: МТРиЭ ЧО, Пост.от 17.05.2018 г. №28/1, п.504
A40: 18 | B40: 1-3-5 | C40: - Рабочий строитель (ср 3,5) | D40: чел.час | E40: 7.08 | F40: 11,47 | G40: 81.21 | J40: 139,76 | K40: 989.5 | M40: 12.18446004 | N40: МТРиЭ ЧО, Пост.от 17.05.2018 г. №28/1, п.504
A41: 19 | B41: 1-3-5 | C41: - Рабочий строитель (ср 3,5) | D41: чел.час | E41: 3.18 | F41: 11,47 | G41: 36.47 | J41: 139,76 | K41: 444.44 | M41: 12.18645462 | N41: МТРиЭ ЧО, Пост.от 17.05.2018 г. №28/1, п.504
A42: 20 | B42: 1-3-6 | C42: Рабочий строитель (ср 3,6) | D42: чел.час | E42: 0.85 | F42: 11,61 | G42: 9.87 | J42: 146,22 | K42: 124.29 | M42: 12.59270517 | N42: МТРиЭ ЧО, Пост.от 17.05.2018 г. №28/1, п.504
A43: 21 | B43: 1-3-8 | C43: Рабочий ... | D43: чел.час | E43: 1.58 | F43: 11,89 | G43: 18.79 | J43: 149,74 | K43: 236.59 | M43: 12.59127195 | N43: МТРиЭ ЧО, Пост.от 17.05.2018 г. №28/1, п.504
A44: 22 | B44: 1-3-8 | C44: - Рабочий монтажник (ср 3,8) | D44: чел.час | E44: 0.04 | F44: 11,89 | G44: 0.48 | J44: 149,74 | K44: 5.99 | M44: 12.47916667 | N44: МТРиЭ ЧО, Пост.от 17.05.2018 г. №28/1, п.504
A45: 23 | B45: 1-3-8 | C45: - Рабочий строитель (ср 3,8) | D45: чел.час | E45: 1.54 | F45: 11,89 | G45: 18.31 | J45: 149,74 | K45: 230.6 | M45: 12.59421081 | N45: МТРиЭ ЧО, Пост.от 17.05.2018 г. №28/1, п.504
A46: 24 | B46: 1-3-9 | C46: Рабочий строитель (ср 3,9) | D46: чел.час | E46: 0.14 | F46: 12,03 | G46: 1.68 | J46: 151,43 | K46: 21.2 | M46: 12.61904762 | N46: МТРиЭ ЧО, Пост.от 17.05.2018 г. №28/1, п.504
A47: 25 | B47: 1-4-0 | C47: Рабочий ... | D47: чел.час | E47: 30.29 | F47: 12,16 | G47: 368.32 | J47: 153,05 | K47: 4635.88 | M47: 12.58655517 | N47: МТРиЭ ЧО, Пост.от 17.05.2018 г. №28/1, п.504
A48: 26 | B48: 1-4-0 | C48: - Рабочий монтажник (ср 4) | D48: чел.час | E48: 0.65 | F48: 12,16 | G48: 7.9 | J48: 153,05 | K48: 99.48 | M48: 12.59240506 | N48: МТРиЭ ЧО, Пост.от 17.05.2018 г. №28/1, п.504
A49: 27 | B49: 1-4-0 | C49: - Рабочий строитель (ср 4) | D49: чел.час | E49: 20.43 | F49: 12,16 | G49: 248.42 | J49: 153,05 | K49: 3126.81 | M49: 12.5867885 | N49: МТРиЭ ЧО, Пост.от 17.05.2018 г. №28/1, п.504
A50: 28 | B50: 1-4-0 | C50: - Рабочий строитель (ср 4)... | D50: чел.час | E50: 9.21 | F50: 12,16 | G50: 112 | J50: 153,05 | K50: 1409.59 | M50: 12.585625 | N50: МТРиЭ ЧО, Пост.от 17.05.2018 г. №28/1, п.504
A51: 29 | B51: 1-4-0 | C51: - Рабочий строитель (ср 4) | D51: чел.час | E51: 8.44 | F51: 12,16 | G51: 102.63 | J51: 153,05 | K51: 1291.74 | M51: 12.58637825 | N51: МТРиЭ ЧО, Пост.от 17.05.2018 г. №28/1, п.504
A52: 30 | B52: 1-4-0 | C52: - Рабочий строитель (ср 4) | D52: чел.час | E52: 0.77 | F52: 12,16 | G52: 9.37 | J52: 153,05 | K52: 117.85 | M52: 12.5773746 | N52: МТРиЭ ЧО, Пост.от 17.05.2018 г. №28/1, п.504
A53: 31 | B53: 1-4-3 | C53: Рабочий монтажник (ср 4,3) | D53: чел.час | E53: 1.42 | F53: 12,72 | G53: 18.06 | J53: 160,15 | K53: 227.41 | M53: 12.59191584 | N53: МТРиЭ ЧО, Пост.от 17.05.2018 г. №28/1, п.504
A54: 32 | B54: 1-4-5 | C54: Рабочий строитель (ср 4,5) | D54: чел.час | E54: 2.86 | F54: 13,09 | G54: 37.43 | J54: 164,75 | K54: 471.19 | M54: 12.58856532 | N54: МТРиЭ ЧО, Пост.от 17.05.2018 г. №28/1, п.504
A55: 33 | B55: 1-4-7 | C55: Рабочий строитель (ср 4,7) | D55: чел.час | E55: 11.94 | F55: 13,46 | G55: 160.71 | J55: 169,49 | K55: 2023.71 | M55: 12.59230913 | N55: МТРиЭ ЧО, Пост.от 17.05.2018 г. №28/1, п.504
A56: 34 | B56: 1-5-0 | C56: Рабочий строитель (ср 5) | D56: чел.час | E56: 16.85 | F56: 14,02 | G56: 236.23 | J56: 176,54 | K56: 2974.7 | M56: 12.59238877 | N56: МТРиЭ ЧО, Пост.от 17.05.2018 г. №28/1, п.504
A57: 35 | B57: 1-6-0 | C57: Рабочий монтажник (ср 6) | D57: чел.час | E57: 0.95 | F57: 16,33 | G57: 15.51 | J57: 205,63 | K57: 195.35 | M57: 12.59509994 | N57: МТРиЭ ЧО, Пост.от 17.05.2018 г. №28/1, п.504
A58: 36 | B58: 2 | C58: Затраты труда машинистов | D58: чел.час | E58: 33.37
A59: Машины и механизмы
A60: 37 | B60: 10201 | C60: Прицепы тракторные 2 т | D60: маш.час | E60: 1.14 | F60: 4,2 | G60: 4.79 | J60: 16 | K60: 18.24 | M60: =IF(ISNUMBER(K60/G60),IF(NOT(K60/G60=0),K60/G60, " "), " ") -> 3.807933194 | N60: МТРиЭ ЧО, Пост. от 17.05.18 № 28/1
A61: 38 | B61: 10311 | C61: Тракторы на гусеничном ходу при работе на других видах строительства 59 кВт (80 л.с.) | D61: маш.час | E61: 0.18 | F61: 75,09 | G61: 13.51 | J61: 572 | K61: 102.96 | M61: 7.621021466 | N61: МТРиЭ ЧО, Пост. от 17.05.18 № 28/1
A62: 39 | B62: 21141 | C62: Краны на автомобильном ходу при работе на других видах строительства 10 т... | D62: маш.час | E62: 0.8 | F62: 134,07 | G62: 107.26 | J62: 801 | K62: 640.8 | M62: 5.974268134 | N62: ...
A63: 40 | B63: 21141 | C63: - Краны на автомобильном ходу при работе на других видах строительства 10 т | D63: маш.час | E63: 0.26 | F63: 134,07 | G63: 34.86 | J63: 801 | K63: 208.26 | M63: 5.974182444 | N63: МТРиЭ ЧО, Пост. от 17.05.18 № 28/1
A64: 41 | B64: 21141 | C64: - Краны на автомобильном ходу при работе на других видах строительства 10 т... | D64: маш.час | E64: 0.54 | F64: 134,07 | G64: 72.4 | J64: 801 | K64: 432.54 | M64: 5.974309392 | N64: ...
A65: 42 | B65: 21141 | C65: - Краны на автомобильном ходу при работе на других видах строительства 10 т | D65: маш.час | E65: 0.29 | F65: 134,07 | G65: 38.88 | J65: 801 | K65: 232.29 | M65: 5.974537037 | N65: МТРиЭ ЧО, Пост. № 56/1
A66: 43 | B66: 21141 | C66: - Краны на автомобильном ходу при работе на других видах строительства 10 т | D66: маш.час | E66: 0.25 | F66: 134,07 | G66: 33.52 | J66: 801 | K66: 200.25 | M66: 5.974045346
A67: 44 | B67: 30101 | C67: Автопогрузчики 5 т... | D67: маш.час | E67: 1.43 | F67: 111,55 | G67: 159.51 | J67: 529 | K67: 756.47 | M67: 4.742461288 | N67: ...
A68: 45 | B68: 30101 | C68: - Автопогрузчики 5 т | D68: маш.час | E68: 0.7 | F68: 111,55 | G68: 78.08 | J68: 529 | K68: 370.3 | M68: 4.742571721
A69: 46 | B69: 30101 | C69: - Автопогрузчики 5 т | D69: маш.час | E69: 0.73 | F69: 111,55 | G69: 81.43 | J69: 529 | K69: 386.17 | M69: 4.742355397 | N69: МТРиЭ ЧО, Пост. от 17.05.18 № 28/1
A70: 47 | B70: 30303 | C70: Лебедки ручные и рычажные тяговым усилием 14,72 кН (1,5 т) | D70: маш.час | E70: 2.77 | F70: 1,06 | G70: 2.94 | J70: 5 | K70: 13.85 | M70: 4.710884354 | N70: МТРиЭ ЧО, Пост. от 17.05.18 № 28/1
A71: 48 | B71: 40102 | C71: Электростанции передвижные 4 кВт | D71: маш.час | E71: 0.01 | F71: 31,16 | G71: 0.31 | J71: 232 | K71: 2.32 | M71: 7.483870968 | N71: МТРиЭ ЧО, Пост. от 17.05.18 № 28/1
A72: 49 | B72: 40202 | C72: Агрегаты сварочные передвижные с номинальным сварочным током 250-400 А с дизельным двигателем | D72: маш.час | E72: 3.1 | F72: 34,63 | G72: 107.35 | J72: 106 | K72: 328.6 | M72: 3.06101537 | N72: МТРиЭ ЧО, Пост. от 17.05.18 № 28/1
A73: 50 | B73: 40502 | C73: Установки для сварки ручной дуговой (постоянного тока) | D73: маш.час | E73: 0.56 | F73: 7,84 | G73: 4.39 | J73: 46 | K73: 25.76 | M73: 5.867881549 | N73: МТРиЭ ЧО, Пост. от 17.05.18 № 28/1
A74: 51 | B74: 40504 | C74: Аппарат для газовой сварки и резки | D74: маш.час | E74: 0.87 | F74: 1,29 | G74: 1.12 | J74: 5 | K74: 4.35 | M74: 3.883928571 | N74: МТРиЭ ЧО, Пост. от 17.05.18 № 28/1
A75: 52 | B75: 41900 | C75: Гамма-дефектоскопы с толщиной просвечиваемой стали до 80 мм | D75: маш.час | E75: 0.3 | F75: 56,92 | G75: 17.08 | J75: 160 | K75: 48 | M75: 2.81030445 | N75: МТРиЭ ЧО, Пост. от 17.05.18 № 28/1
A76: 53 | B76: 42901 | C76: Установки для гидравлических испытаний трубопроводов, давление нагнетания низкое 0,1 МПа (1 кгс/см2), высокое 10 МПа (100 кгс/см2) при работе от передвижных электростанций | D76: маш.час | E76: 0.01 | F76: 9,04 | G76: 0.09 | J76: 36 | K76: 0.36 | M76: 4 | N76: МТРиЭ ЧО, Пост. от 17.05.18 № 28/1
A77: 54 | B77: 50101 | C77: Компрессоры передвижные с двигателем внутреннего сгорания давлением до 686 кПа (7 ат), производительность до 5 м3/мин | D77: маш.час | E77: 14.65 | F77: 62,75 | G77: 919.29 | J77: 421 | K77: 6167.65 | M77: 6.709145101 | N77: МТРиЭ ЧО, Пост. от 17.05.18 № 28/1
A78: 55 | B78: 60247 | C78: Экскаваторы одноковшовые дизельные на гусеничном ходу при работе на других видах строительства 0,5 м3 | D78: маш.час | E78: 7.41 | F78: 123,11 | G78: 912.25 | J78: 745 | K78: 5520.45 | M78: 6.051466155 | N78: МТРиЭ ЧО, Пост. от 17.05.18 № 28/1
A79: 56 | B79: 70148 | C79: Бульдозеры при работе на других видах строительства 59 кВт (80 л.с.) | D79: маш.час | E79: 1.97 | F79: 71,41 | G79: 140.68 | J79: 628 | K79: 1237.16 | M79: 8.794142735 | N79: МТРиЭ ЧО, Пост. от 17.05.18 № 28/1
A80: 57 | B80: 70149 | C80: Бульдозеры при работе на других видах строительства 79 кВт (108 л.с.) | D80: маш.час | E80: 0.32 | F80: 87,96 | G80: 28.15 | J80: 723 | K80: 231.36 | M80: 8.218827709 | N80: МТРиЭ ЧО, Пост. от 17.05.18 № 28/1
A81: 58 | B81: 91400 | C81: Рыхлители прицепные (без трактора) | D81: маш.час | E81: 0.18 | F81: 7,64 | G81: 1.37 | J81: 29,25 | K81: 5.27 | M81: 3.846715328 | N81: ЧелСЦена, май 2018 г., ч.2
A82: 59 | B82: 111301 | C82: Вибратор поверхностный | D82: маш.час | E82: 0.09 | F82: 0,53 | G82: 0.05 | J82: 3 | K82: 0.27 | M82: 5.4 | N82: МТРиЭ ЧО, Пост. № 39/1
A83: 60 | B83: 120102 | C83: Автогудронаторы 7000 л | D83: маш.час | E83: 0.02 | F83: 132,93 | G83: 2.66 | J83: 940 | K83: 18.8 | M83: 7.067669173 | N83: МТРиЭ ЧО, Пост. от 17.05.18 № 28/1
A84: 61 | B84: 120202 | C84: Автогрейдеры среднего типа 99 кВт (135 л.с.)... | D84: маш.час | E84: 0.41 | F84: 154,8 | G84: 63.47 | J84: 1014 | K84: 415.74 | M84: 6.550181188 | N84: ...
A85: 62 | B85: 120202 | C85: - Автогрейдеры среднего типа 99 кВт (135 л.с.) | D85: маш.час | E85: 0.11 | F85: 154,8 | G85: 17.03 | J85: 1014 | K85: 111.54 | M85: 6.549618321
A86: 63 | B86: 120202 | C86: - Автогрейдеры среднего типа 99 кВт (135 л.с.) | D86: маш.час | E86: 0.3 | F86: 154,8 | G86: 46.44 | J86: 1014 | K86: 304.2 | M86: 6.550387597 | N86: МТРиЭ ЧО, Пост. от 17.05.18 № 28/1
A87: 64 | B87: 120500 | C87: Гудронаторы ручные | D87: маш.час | E87: 0.02 | F87: 19,92 | G87: 0.4 | J87: 74,35 | K87: 1.48 | M87: 3.7 | N87: ЧелСЦена, май 2018 г., ч.2
A88: 65 | B88: 120906 | C88: Катки дорожные самоходные гладкие 8 т | D88: маш.час | E88: 0.83 | F88: 83,58 | G88: 69.38 | J88: 570 | K88: 473.1 | M88: 6.818968002 | N88: МТРиЭ ЧО, Пост. от 17.05.18 № 28/1
A89: 66 | B89: 120907 | C89: Катки дорожные самоходные гладкие 13 т | D89: маш.час | E89: 1.56 | F89: 125,65 | G89: 196.01 | J89: 773 | K89: 1205.88 | M89: 6.152135095 | N89: МТРиЭ ЧО, Пост. от 17.05.18 № 28/1
A90: 67 | B90: 120911 | C90: Катки на пневмоколесном ходу 30 т | D90: маш.час | E90: 0.06 | F90: 217,21 | G90: 13.03 | J90: 1147 | K90: 68.82 | M90: 5.281657713 | N90: МТРиЭ ЧО, Пост. от 17.05.18 № 28/1
A91: 68 | B91: 121011 | C91: Котлы битумные передвижные 400 л... | D91: маш.час | E91: 2.1 | F91: 32,24 | G91: 67.71 | J91: 109 | K91: 228.9 | M91: 3.380593708 | N91: ...
A92: 69 | B92: 121011 | C92: - Котлы битумные передвижные 400 л | D92: маш.час | E92: 1.52 | F92: 32,24 | G92: 49.01 | J92: 109 | K92: 165.68 | M92: =IF(ISNUMBER(K92/G92),IF(NOT(K92/G92=0),K92/G92, " "), " ") -> 3.380534585 | N92: МТРиЭ ЧО, Пост. от 17.05.18 № 28/1
A93: 70 | B93: 121011 | C93: - Котлы битумные передвижные 400 л | D93: маш.час | E93: 0.58 | F93: 32,24 | G93: 18.7 | J93: 109 | K93: 63.22 | M93: 3.380748663 | N93: МТРиЭ ЧО, Пост. № 20/1
A94: 71 | B94: 121601 | C94: Машины поливомоечные 6000 л... | D94: маш.час | E94: 0.26 | F94: 121,07 | G94: 31.47 | J94: 674 | K94: 175.24 | M94: 5.568477915 | N94: ...
A95: 72 | B95: 121601 | C95: - Машины поливомоечные 6000 л | D95: маш.час | E95: 0.17 | F95: 121,07 | G95: 20.58 | J95: 674 | K95: 114.58 | M95: 5.567541302
A96: 73 | B96: 121601 | C96: - Машины поливомоечные 6000 л | D96: маш.час | E96: 0.09 | F96: 121,07 | G96: 10.89 | J96: 674 | K96: 60.66 | M96: 5.570247934 | N96: МТРиЭ ЧО, Пост. от 17.05.18 № 28/1
A97: 74 | B97: 121803 | C97: Распределители каменной мелочи | D97: маш.час | E97: 0.05 | F97: 233,03 | G97: 11.65 | J97: 856,14 | K97: 42.81 | M97: 3.674678112 | N97: ЧелСЦена, май 2018 г., ч.2
A98: 75 | B98: 122000 | C98: Укладчики асфальтобетона | D98: маш.час | E98: 0.02 | F98: 202,8 | G98: 4.06 | J98: 1150 | K98: 23 | M98: 5.665024631 | N98: МТРиЭ ЧО, Пост. от 17.05.18 № 28/1
A99: 76 | B99: 150202 | C99: Агрегаты сварочные двухпостовые для ручной сварки на тракторе 79 кВт (108 л.с.) | D99: маш.час | E99: 1.01 | F99: 112,26 | G99: 113.39 | J99: 717 | K99: 724.17 | M99: 6.386542023 | N99: МТРиЭ ЧО, Пост. от 17.05.18 № 28/1
A100: 77 | B100: 150701 | C100: Трубоукладчики для труб диаметром до 400 мм грузоподъемностью 6,3 т... | D100: маш.час | E100: 0.53 | F100: 129,46 | G100: 68.61 | J100: 756,17 | K100: 400.77 | M100: 5.841276782 | N100: ...
A101: 78 | B101: 150701 | C101: - Трубоукладчики для труб диаметром до 400 мм грузоподъемностью 6,3 т | D101: маш.час | E101: 0.46 | F101: 129,46 | G101: 59.55 | J101: 756,17 | K101: 347.84 | M101: 5.841141898 | N101: МТРиЭ ЧО, Пост. от 17.05.18 № 28/1
A102: 79 | B102: 150701 | C102: - Трубоукладчики для труб диаметром до 400 мм грузоподъемностью 6,3 т | D102: маш.час | E102: 0.07 | F102: 129,46 | G102: 9.06 | J102: 756,17 | K102: 52.93 | M102: 5.842163355 | N102: МТРиЭ ЧО, Пост. № 20/1
A103: 80 | B103: 152301 | C103: Тракторы на пневмоколесном ходу 29 кВт (40 л.с.) | D103: маш.час | E103: 1.14 | F103: 49,99 | G103: 56.99 | J103: 354,16 | K103: 403.74 | M103: 7.084400772 | N103: ЧелСЦена, май 2018 г., ч.2
A104: 81 | B104: 160402 | C104: Машины бурильно-крановые на автомобиле, глубина бурения 3,5 м | D104: маш.час | E104: 0.16 | F104: 137,21 | G104: 21.95 | J104: 945 | K104: 151.2 | M104: 6.888382688 | N104: МТРиЭ ЧО, Пост. № 56/1
A105: 82 | B105: 170300 | C105: Машина монтажная для выполнения работ при прокладке и монтаже кабеля на базе автомобиля ГАЗ-66 | D105: маш.час | E105: 0.29 | F105: 105,94 | G105: 30.72 | J105: 599,36 | K105: 173.81 | M105: 5.657877604 | N105: ЧелСЦена, май 2018 г., ч.2
A106: 83 | B106: 170602 | C106: Транспортеры прицепные кабельные до 7 т, ККТ-7 | D106: маш.час | E106: 0.29 | F106: 42,32 | G106: 12.27 | J106: 172 | K106: 49.88 | M106: 4.065199674 | N106: МТРиЭ ЧО, Пост. от 17.05.18 № 28/1
A107: 84 | B107: 171000 | C107: Бульдозер 128,7 кВт (175 л.с.) в составе кабелеукладочной колонны | D107: маш.час | E107: 0.27 | F107: 154,78 | G107: 41.79 | J107: 911,7 | K107: 246.16 | M107: 5.890404403 | N107: ЧелСЦена, май 2018 г., ч.2
A108: 85 | B108: 330301 | C108: Машины шлифовальные электрические | D108: маш.час | E108: 0.86 | F108: 1,86 | G108: 1.6 | J108: 10 | K108: 8.6 | M108: 5.375 | N108: МТРиЭ ЧО, Пост. от 17.05.18 № 28/1
A109: 86 | B109: 330804 | C109: Молотки при работе от передвижных компрессорных станций отбойные пневматические | D109: маш.час | E109: 0.37 | F109: 1,44 | G109: 0.53 | J109: 4 | K109: 1.48 | M109: 2.79245283 | N109: МТРиЭ ЧО, Пост. от 17.05.18 № 28/1 (330804-1)
A110: 87 | B110: 331100 | C110: Трамбовки пневматические при работе от передвижных компрессорных станций | D110: маш.час | E110: 27.55 | F110: 0,75 | G110: 20.66 | J110: 3 | K110: 82.65 | M110: 4.000484027 | N110: МТРиЭ ЧО, Пост. от 17.05.18 № 28/1 (331101-1)
A111: 88 | B111: 340101 | C111: Агрегаты окрасочные высокого давления для окраски поверхностей конструкций мощностью 1 кВт | D111: маш.час | E111: 0.05 | F111: 7,12 | G111: 0.35 | J111: 28 | K111: 1.4 | M111: 4 | N111: МТРиЭ ЧО, Пост. от 17.05.18 № 28/1
A112: 89 | B112: 392200 | C112: Компьютер сварочный | D112: маш.час | E112: 6.17 | F112: 13,18 | G112: 81.32 | J112: 45,45 | K112: 280.43 | M112: 3.44847516 | N112: МТРиЭ ЧО, Пост.от 17.05.2018 г. №28/1, п.117
A113: 90 | B113: 392255 | C113: Генератор сварочный для сварки полиэтиленовых труб | D113: маш.час | E113: 6.17 | F113: 19,7 | G113: 121.55 | J113: 53,24 | K113: 328.5 | M113: 2.702591526 | N113: МТРиЭ ЧО, Пост.от 17.05.2018 г. №28/1, п.117
A114: 91 | B114: 394061 | C114: Гидравлическая лебедка-ворот в комплекте с гидравлическим агрегатом на автоприцепе | D114: маш.час | E114: 1.92 | F114: 67,11 | G114: 128.85 | J114: 109,51 | K114: 210.26 | M114: 1.631819946 | N114: ЧелСЦена, май 2018 г., ч.2
A115: 92 | B115: 394101 | C115: Позиционер-центратор многоцелевой для сборки и сварки полиэтиленовых соединительных деталей с трубой диаметром 63 мм | D115: маш.час | E115: 0.45 | F115: 4,41 | G115: 1.98 | J115: 17,33 | K115: 7.8 | M115: 3.939393939 | N115: ЧелСЦена, май 2018 г., ч.2
A116: 93 | B116: 394102 | C116: Позиционер-центратор многоцелевой для сборки и сварки полиэтиленовых соединительных деталей с трубой диаметром 110 мм | D116: маш.час | E116: 2.34 | F116: 4,41 | G116: 10.32 | J116: 17,33 | K116: 40.55 | M116: 3.929263566 | N116: ЧелСЦена, май 2018 г., ч.2
A117: 94 | B117: 394107 | C117: Позиционер-центратор для сборки и сварки при помощи соединительных деталей с закладными нагревателями полиэтиленовых труб диаметром 110 мм | D117: маш.час | E117: 3.12 | F117: 6,49 | G117: 20.25 | J117: 25,5 | K117: 79.56 | M117: 3.928888889 | N117: ЧелСЦена, май 2018 г., ч.2
A118: 95 | B118: 400001 | C118: Автомобили бортовые, грузоподъемность до 5 т... | D118: маш.час | E118: 0.42 | F118: 103,2 | G118: 43.34 | J118: 618,14 | K118: 259.61 | M118: 5.990078449 | N118: ...
A119: 96 | B119: 400001 | C119: - Автомобили бортовые, грузоподъемность до 5 т | D119: маш.час | E119: 0.15 | F119: 103,2 | G119: 15.48 | J119: 618,14 | K119: 92.72 | M119: 5.989664083 | N119: МТРиЭ ЧО, Пост. от 17.05.18 № 28/1
A120: 97 | B120: 400001 | C120: - Автомобили бортовые, грузоподъемность до 5 т | D120: маш.час | E120: 0.02 | F120: 103,2 | G120: 2.06 | J120: 618,14 | K120: 12.36 | M120: 6 | N120: МТРиЭ ЧО, Пост. № 20/1
A121: 98 | B121: 400001 | C121: - Автомобили бортовые, грузоподъемность до 5 т | D121: маш.час | E121: 0.25 | F121: 103,2 | G121: 25.8 | J121: 618,14 | K121: 154.53 | M121: 5.989534884
A122: 99 | B122: 400051 | C122: Автомобиль-самосвал, грузоподъемность до 7 т | D122: маш.час | E122: 0.01 | F122: 105,37 | G122: 1.05 | J122: 761 | K122: 7.61 | M122: 7.247619048 | N122: МТРиЭ ЧО, Пост. от 17.05.18 № 28/1
A123: 100 | B123: 400181 | C123: Прицеп типа ПС-3100 для барабанов полиэтиленовых труб | D123: маш.час | E123: 1.09 | F123: 21,21 | G123: 23.12 | J123: 40,6 | K123: 44.25 | M123: 1.913927336 | N123: ЧелСЦена, май 2018 г., ч.2
A124: 101 | B124: 400311 | C124: Спецавтомашины грузоподъемностью до 8 т, вездеходы | D124: маш.час | E124: 2.84 | F124: 128,2 | G124: 364.09 | J124: 872,74 | K124: 2478.58 | M124: 6.807602516 | N124: ЧелСЦена, май 2018 г., ч.2
A125: Материалы
A126: 102 | B126: 101-0073 | C126: Битумы нефтяные строительные марки БН-90/10... | D126: т | E126: 0.01 | F126: 3320 | G126: 33.2 | I126: 177.94 | J126: 18442 | K126: 184.42 | M126: =IF(ISNUMBER(K126/G126),IF(NOT(K126/G126=0),K126/G126, " "), " ") -> 5.554819277 | N126: МТРиЭ ЧО, Пост. от 17.05.18 № 28/1
A127: 103 | B127: 101-0073 | C127: - Битумы нефтяные строительные марки БН-90/10 | D127: т | E127: 0.004 | F127: 3320 | G127: 13.28 | H127: 18456 | I127: 73.82 | J127: 18442 | K127: 73.77 | M127: 5.55496988 | N127: МТРиЭ ЧО, Пост. от 17.05.18 № 28/1
A128: 104 | B128: 101-0073 | C128: - Битумы нефтяные строительные марки БН-90/10 | D128: т | E128: 0.006 | F128: 3320 | G128: 19.92 | H128: 17354 | I128: 104.12 | J128: 18442 | K128: 110.65 | M128: 5.554718876 | N128: МТРиЭ ЧО, Пост. от 17.05.18 № 28/1
A129: 105 | B129: 101-0311 | C129: Каболка... | D129: т | E129: 0.0035 | F129: 26830 | G129: 93.9 | I129: 381.31 | J129: 103989,2 | K129: 363.96 | M129: 3.876038339 | N129: К=1,1 МТРиЭ ЧО, Пост.от 17.05.2018 г. №28/1
A130: 106 | B130: 101-0311 | C130: - Каболка | D130: т | E130: 0.0014 | F130: 26830 | G130: 37.56 | H130: 101515.37 | I130: 142.12 | J130: 103989,2 | K130: 145.58 | M130: 3.875931842 | N130: К=1,1 МТРиЭ ЧО, Пост.от 17.05.2018 г. №28/1
A131: 107 | B131: 101-0311 | C131: - Каболка | D131: т | E131: 0.0021 | F131: 26830 | G131: 56.34 | H131: 113900 | I131: 239.19 | J131: 103989,2 | K131: 218.38 | M131: 3.876109336 | N131: К=1,1 МТРиЭ ЧО, Пост.от 17.05.2018 г. №28/1
A132: 108 | B132: 101-0322 | C132: Керосин для технических целей марок КТ-1, КТ-2 | D132: т | E132: 0.0001 | F132: 7840 | G132: 0.78 | H132: 47780 | I132: 4.78 | J132: 49075,38 | K132: 4.91 | M132: 6.294871795 | N132: МТРиЭ ЧО, Пост.от 17.05.2018 г. №28/1, п.108
A133: 109 | B133: 101-0324 | C133: Кислород технический газообразный | D133: м3 | E133: 0.265 | F133: 6,2 | G133: 1.64 | H133: 42.66 | I133: 11.31 | J133: 49,26 | K133: 13.06 | M133: 7.963414634 | N133: 26.03.080
A134: 110 | B134: 101-0485 | C134: Краска ХВ-161 перхлорвиниловая фасадная марок А, Б | D134: т | E134: 0.0006 | F134: 22130 | G134: 13.28 | H134: 85783.9 | I134: 51.47 | J134: 88019,25 | K134: 52.81 | M134: 3.976656627 | N134: 14.01.154
A135: 111 | B135: 101-0595 | C135: Мастика битумно-латексная кровельная | D135: т | E135: 0.0004 | F135: 3810 | G135: 1.52 | H135: 15863 | I135: 6.35 | J135: 16546,81 | K135: 6.62 | M135: 4.355263158 | N135: МТРиЭ ЧО, Пост.от 10.08.2017 г. №39/1, п.374
A136: 112 | B136: 101-0596 | C136: Мастика битумно-кукерсольная холодная | D136: т | E136: 0.0023 | F136: 3840 | G136: 8.83 | H136: 14075 | I136: 32.37 | J136: 14733,04 | K136: 33.89 | M136: 3.838052095 | N136: МТРиЭ ЧО, Пост.от 04.05.2017 г. №20/1, п.115
A137: 113 | B137: 101-0782 | C137: Поковки из квадратных заготовок, масса 1,8 кг... | D137: т | E137: 0.0077 | F137: 10190 | G137: 78.47 | I137: 598.12 | J137: 79546,75 | K137: 612.51 | M137: 7.805658213 | N137: МТРиЭ ЧО, Пост. от 17.05.18 № 28/1
A138: 114 | B138: 101-0782 | C138: - Поковки из квадратных заготовок, масса 1,8 кг | D138: т | E138: 0.0019 | F138: 10190 | G138: 19.36 | H138: 71817 | I138: 136.45 | J138: 79546,75 | K138: 151.14 | M138: 7.806818182 | N138: МТРиЭ ЧО, Пост. от 17.05.18 № 28/1
A139: 115 | B139: 101-0782 | C139: - Поковки из квадратных заготовок, масса 1,8 кг | D139: т | E139: 0.0058 | F139: 10190 | G139: 59.11 | H139: 79599 | I139: 461.67 | J139: 79546,75 | K139: 461.37 | M139: 7.805278295 | N139: МТРиЭ ЧО, Пост. от 17.05.18 № 28/1
A140: 116 | B140: 101-0850 | C140: Резина листовая вулканизованная цветная | D140: кг | E140: 2.446 | F140: 23,21 | G140: 56.77 | H140: 95.48 | I140: 233.54 | J140: 97,76 | K140: 239.12 | M140: 4.212083847 | N140: Среднее (11.06.420, 11.06.4201)/42.8*22.12
A141: 117 | B141: 101-0962 | C141: Смазка солидол жировой марки «Ж» | D141: т | E141: 0.0004 | F141: 10350 | G141: 4.14 | H141: 44971.33 | I141: 17.99 | J141: 46293 | K141: 18.52 | M141: 4.473429952 | N141: 27.01.090
A142: 118 | B142: 101-1355 | C142: Цемент гипсоглиноземистый расширяющийся | D142: т | E142: 0.0046 | F142: 1870 | G142: 8.6 | H142: 20877.97 | I142: 96.04 | J142: 21581,6 | K142: 99.28 | M142: 11.54418605 | N142: 13.01.105
A143: 119 | B143: 101-1513 | C143: Электроды диаметром 4 мм Э42... | D143: т | E143: 0.0009 | F143: 11520 | G143: 10.37 | I143: 71.15 | J143: 83120,13 | K143: 72.87 | M143: 7.027000964 | N143: 08.07.006
A144: 120 | B144: 101-1513 | C144: - Электроды диаметром 4 мм Э42 | D144: т | E144: 0.0006 | F144: 11520 | G144: 6.91 | H144: 77995.45 | I144: 46.8 | J144: 79882,37 | K144: 47.93 | M144: 6.936324168 | N144: 08.07.006
A145: 121 | B145: 101-1513 | C145: - Электроды диаметром 4 мм Э42 | D145: т | E145: 0.0003 | F145: 11520 | G145: 3.46 | H145: 81166.47 | I145: 24.35 | J145: 83120,13 | K145: 24.94 | M145: 7.208092486 | N145: 08.07.006
A146: 122 | B146: 101-1514 | C146: Электроды диаметром 4 мм Э42А | D146: т | E146: 0.0001 | F146: 11520 | G146: 1.15 | H146: 77995.45 | I146: 7.8 | J146: 79882,37 | K146: 7.99 | M146: 6.947826087 | N146: 08.07.006
A147: 123 | B147: 101-1529 | C147: Электроды диаметром 6 мм Э42 | D147: т | E147: 0.0003 | F147: 10660 | G147: 3.2 | H147: 67932 | I147: 20.38 | J147: 69617,65 | K147: 20.89 | M147: 6.528125 | N147: 08.07.008
A148: 124 | B148: 101-1530 | C148: Электроды диаметром 6 мм Э42А | D148: т | E148: 0.0005 | F148: 10660 | G148: 5.33 | H148: 67932 | I148: 33.97 | J148: 69617,65 | K148: 34.81 | M148: 6.530956848 | N148: 08.07.008
A149: 125 | B149: 101-1537 | C149: Электроды диаметром 8 мм Э42 | D149: т | E149: 0.0001 | F149: 10660 | G149: 1.07 | H149: 67932 | I149: 6.79 | J149: 69617,65 | K149: 6.96 | M149: 6.504672897 | N149: 08.07.008
A150: 126 | B150: 101-1556 | C150: Битумы нефтяные дорожные марки БНД-60/90, БНД 90/130 | D150: т | E150: 0.0357 | F150: 3030 | G150: 108.16 | H150: 11319 | I150: 404.08 | J150: 11834,18 | K150: 422.48 | M150: 3.906065089 | N150: МТРиЭ ЧО, Пост.от 17.05.2018 г. №28/1, п.509
A151: 127 | B151: 101-1597 | C151: Брезент | D151: м2 | E151: 0.0004 | F151: 32,5 | G151: 0.01 | H151: 102.54 | I151: 0.04 | J151: 104,87 | K151: 0.04 | M151: 4 | N151: 26.10.015
A152: 128 | B152: 101-1703 | C152: Прокладки резиновые (пластина техническая прессованная) | D152: кг | E152: 0.03 | F152: 22,8 | G152: 0.68 | H152: 131.94 | I152: 3.96 | J152: 134,9 | K152: 4.05 | M152: 5.955882353 | N152: Среднее (11.06.409,11.06.413,11.06.412,11.06.410,11.06.420)
A153: 129 | B153: 101-1705 | C153: Пакля пропитанная | D153: кг | E153: 20.4 | F153: 6,99 | G153: 142.6 | H153: 33.9 | I153: 691.56 | J153: 34,92 | K153: 712.37 | M153: 4.995582048 | N153: 10.01.390
A154: 130 | B154: 101-1742 | C154: Толь с крупнозернистой посыпкой гидроизоляционный марки ТГ-350 | D154: м2 | E154: 0.036 | F154: 7,38 | G154: 0.27 | H154: 28.13 | I154: 1.01 | J154: 28,89 | K154: 1.04 | M154: 3.851851852 | N154: 11.01.328
A155: 131 | B155: 101-1782 | C155: Ткань мешочная | D155: 10 м2 | E155: 0.0001 | F155: 92,4 | G155: 0.01 | H155: 410.3 | I155: 0.04 | J155: 419,63 | K155: 0.04 | M155: 4 | N155: 26.10.080
A156: 132 | B156: 101-1924 | C156: Электроды диаметром 4 мм Э42А | D156: кг | E156: 0.0021 | F156: 11,52 | G156: 0.02 | H156: 78 | I156: 0.16 | J156: 79,89 | K156: 0.17 | M156: 8.5 | N156: 08.07.006
A157: 133 | B157: 101-1994 | C157: Краски маркировочные МКЭ-4 | D157: кг | E157: 0.0014 | F157: 103 | G157: 0.14 | H157: 227.2 | I157: 0.32 | J157: 232,26 | K157: 0.33 | M157: 2.357142857 | N157: 14.01.140.8
A158: 134 | B158: 101-2143 | C158: Краска | D158: кг | E158: 0.0038 | F158: 19,1 | G158: 0.07 | H158: 48 | I158: 0.18 | J158: 49,48 | K158: 0.19 | M158: =IF(ISNUMBER(K158/G158),IF(NOT(K158/G158=0),K158/G158, " "), " ") -> 2.714285714 | N158: МТРиЭ ЧО, Пост.от 17.05.2018 г. №28/1, п.373
A159: 135 | B159: 101-2211 | C159: Пленка радиографическая РТ-5 | D159: дм2 | E159: 0.72 | F159: 8,3 | G159: 5.98 | H159: 15.4 | I159: 11.09 | J159: 15,71 | K159: 11.31 | M159: 1.891304348 | N159: Среднее (37.03.003, 37.03.004, 37.03.011, 37.03.0111, 37.03.012, 37.03.0121, 37.03.016, 37.03.017, 37.03.018)
A160: 136 | B160: 101-2278 | C160: Пропан-бутан, смесь техническая | D160: кг | E160: 3.557 | F160: 9,8 | G160: 34.86 | H160: 39.66 | I160: 141.07 | J160: 44,46 | K160: 158.14 | M160: 4.53643144 | N160: 26.03.130
A161: 137 | B161: 101-2467 | C161: Растворитель марки Р-4 | D161: т | E161: 0.0001 | F161: 16570 | G161: 1.66 | H161: 65593.45 | I161: 6.56 | J161: 67489,28 | K161: 6.75 | M161: 4.06626506 | N161: Среднее (14.01.401, 14.01.402)
A162: 138 | B162: 101-2477 | C162: Лента мастично-полимерная типа «Лиам» | D162: м2 | E162: 2.331 | F162: 67,9 | G162: 158.28 | H162: 181.02 | I162: 421.96 | J162: 185,25 | K162: 431.82 | M162: 2.728203184 | N162: Среднее (10.02.206, 10.02.2061)
A163: 139 | B163: 101-2489 | C163: Лента поливинилхлоридная липкая толщиной 0,4 мм | D163: м2 | E163: 1.073 | F163: 15,4 | G163: 16.52 | H163: 43.64 | I163: 46.83 | J163: 44,7 | K163: 47.96 | M163: 2.9031477 | N163: 10.02.202
A164: 140 | B164: 101-3271 | C164: Фотопроявитель | D164: л | E164: 0.0072 | F164: 25,4 | G164: 0.18 | H164: 101.58 | I164: 0.73 | J164: 103,95 | K164: 0.75 | M164: 4.166666667 | N164: Среднее (37.03.032, 37.03.033, 37.03.034, 37.03.035)
A165: 141 | B165: 101-3272 | C165: Фотофиксаж | D165: л | E165: 0.0072 | F165: 18,5 | G165: 0.13 | H165: 87.49 | I165: 0.63 | J165: 89,57 | K165: 0.64 | M165: 4.923076923 | N165: Среднее (37.03.036, 37.03.037, 37.03.038, 37.03.039)
A166: 142 | B166: 101-8001 | C166: Кислота уксусная | D166: кг | E166: 0.0002 | F166: 18,9 | H166: 61.02 | I166: 0.01 | J166: 62,75 | K166: 0.01 | N166: 26.02.076
A167: 143 | B167: 102-0008 | C167: Лесоматериалы круглые хвойных пород для строительства диаметром 14-24 см, длиной 3-6,5 м | D167: м3 | E167: 0.0002 | F167: 377 | G167: 0.08 | H167: 3474.58 | I167: 0.69 | J167: 3675,28 | K167: 0.74 | M167: 9.25 | N167: 09.01.030
A168: 144 | B168: 102-0025 | C168: Бруски обрезные хвойных пород длиной 4-6,5 м, шириной 75-150 мм, толщиной 40-75 мм, III сорта | D168: м3 | E168: 0.0019 | F168: 996 | G168: 1.9 | H168: 7192 | I168: 13.66 | J168: 7448,56 | K168: 14.14 | M168: 7.442105263 | N168: МТРиЭ ЧО, Пост.от 17.05.2018 г. №28/1, п.176
A169: 145 | B169: 102-0117 | C169: Доски обрезные хвойных пород длиной 2-3,75 м, шириной 75-150 мм, толщиной 32-40 мм, III сорта... | D169: м3 | E169: 0.0002 | F169: 663 | G169: 0.14 | I169: 1.04 | J169: 4949,84 | K169: 1.09 | M169: 7.785714286 | N169: (09.01.133/782.84)*614.21
A170: 146 | B170: 102-0117 | C170: - Доски обрезные хвойных пород длиной 2-3,75 м, шириной 75-150 мм, толщиной 32-40 мм, III сорта | D170: м3 | E170: 0.0001 | F170: 663 | G170: 0.07 | H170: 5702.03 | I170: 0.57 | J170: 5928,79 | K170: 0.59 | M170: 8.428571429 | N170: (09.01.133/782.84)*614.21
A171: 147 | B171: 102-0117 | C171: - Доски обрезные хвойных пород длиной 2-3,75 м, шириной 75-150 мм, толщиной 32-40 мм, III сорта | D171: м3 | E171: 0.0001 | F171: 663 | G171: 0.07 | H171: 4741.2 | I171: 0.47 | J171: 4949,84 | K171: 0.5 | M171: 7.142857143 | N171: (09.01.133/782.84)*614.21
A172: 148 | B172: 102-0138 | C172: Доски необрезные хвойных пород длиной 2-3,75 м, все ширины, толщиной 32-40 мм, IV сорта | D172: м3 | E172: 0.0002 | F172: 374 | G172: 0.07 | H172: 2695.91 | I172: 0.54 | J172: 2863,64 | K172: 0.57 | M172: 8.142857143 | N172: (09.01.113/570.09)*330.88
A173: 149 | B173: 103-1009 | C173: Фасонные стальные сварные части, диаметр до 800 мм | D173: т | E173: 0.0028 | F173: 13960 | G173: 39.09 | H173: 120360 | I173: 337.01 | J173: 123047,59 | K173: 344.53 | M173: 8.813763111 | N173: МТРиЭ ЧО, Пост.от 17.05.2018 г. №28/1, п.198
A174: 150 | B174: 108-0081 | C174: Бобышки скошенные | D174: шт. | E174: 1 | F174: 14,4 | G174: 14.4 | H174: 162.35 | I174: 162.35 | J174: 165,87 | K174: 165.87 | M174: 11.51875 | N174: 24.23.029
A175: 151 | B175: 113-0021 | C175: Грунтовка ГФ-021 красно-коричневая... | D175: т | E175: 0.0003 | F175: 18440 | G175: 5.53 | I175: 19.88 | J175: 71186,14 | K175: 20.46 | M175: 3.699819168 | N175: ...
A176: 152 | B176: 113-0021 | C176: - Грунтовка ГФ-021 красно-коричневая | D176: т | E176: 0.0001 | F176: 18440 | G176: 1.84 | H176: 60437 | I176: 6.04 | J176: 62229,7 | K176: 6.22 | M176: 3.380434783 | N176: МТРиЭ ЧО, Пост.от 17.05.2018 г. №28/1, п.219
A177: 153 | B177: 113-0021 | C177: - Грунтовка ГФ-021 красно-коричневая | D177: т | E177: 0.0002 | F177: 18440 | G177: 3.69 | H177: 69212 | I177: 13.84 | J177: 71186,14 | K177: 14.24 | M177: 3.859078591 | N177: МТРиЭ ЧО, Пост.от 10.11.2017 г. №56/1, п.219
A178: 154 | B178: 113-0026 | C178: Грунтовка ФЛ-03К коричневая | D178: т | E178: 0.0001 | F178: 30400 | G178: 3.04 | H178: 60169.49 | I178: 6.02 | J178: 61956,84 | K178: 6.2 | M178: 2.039473684 | N178: 14.01.340
A179: 155 | B179: 113-0163 | C179: Смола эпоксидная марки ЭД-20 | D179: т | E179: 0.0001 | F179: 58190 | G179: 5.82 | H179: 254237.66 | I179: 25.42 | J179: 259718,96 | K179: 25.97 | M179: 4.462199313 | N179: 11.02.254
A180: 156 | B180: 113-0228 | C180: Эмаль ХВ-125 серебристая | D180: т | E180: 0.0002 | F180: 27280 | G180: 5.46 | H180: 107684 | I180: 21.54 | J180: 110421,64 | K180: 22.08 | M180: 4.043956044 | N180: МТРиЭ ЧО, Пост.от 17.05.2018 г. №28/1, п.220
A181: 157 | B181: 113-0246 | C181: Эмаль ПФ-115 серая | D181: т | E181: 0.0002 | F181: 19666,67 | G181: 3.93 | H181: 70130.93 | I181: 14.03 | J181: 72117,51 | K181: 14.42 | M181: 3.669211196 | N181: 14.01.1642
A182: 158 | B182: 113-0359 | C182: Обезжириватель «CAMISOLVE» | D182: кг | E182: 0.88 | F182: 79 | G182: 69.52 | H182: 335.69 | I182: 295.41 | J182: 342,82 | K182: 301.68 | M182: 4.339470656 | N182: Код ОКП 23 10 00
A183: 159 | B183: 301-3193 | C183: Ковер | D183: шт. | E183: 1 | F183: 119 | G183: 119 | H183: 508.47 | I183: 508.47 | J183: 521,57 | K183: 521.57 | M183: 4.382941176 | N183: 20.06.149*0.012
A184: 160 | B184: 301-3240 | C184: Колпачки-заглушки 1" | D184: шт. | E184: 1 | F184: 2,59 | G184: 2.59 | H184: 12.24 | I184: 12.24 | J184: 12,48 | K184: 12.48 | M184: 4.818532819 | N184: 100.01.028*10.20
A185: 161 | B185: 401-0005 | C185: Бетон тяжелый, класс В12,5 (М150) | D185: м3 | E185: 0.001 | F185: 592 | G185: 0.59 | H185: 2239 | I185: 2.24 | J185: 2643,05 | K185: 2.64 | M185: 4.474576271 | N185: МТРиЭ ЧО, Пост.от 17.05.2018 г. №28/1, п.400
A186: 162 | B186: 403-1103 | C186: Плиты железобетонные опорные | D186: м3 | E186: 0.04 | F186: 2362,7 | G186: 94.51 | H186: 18063 | I186: 722.52 | J186: 18821,67 | K186: 752.87 | M186: 7.96603534 | N186: МТРиЭ ЧО, Пост.от 17.05.2018 г. №28/1, п.019
A187: 163 | B187: 408-0006 | C187: Щебень из природного камня для строительных работ марка 1200, фракция 10-20 мм | D187: м3 | E187: 0.09 | F187: 131 | G187: 11.79 | H187: 509 | I187: 45.81 | J187: 677,1 | K187: 60.94 | M187: 5.168787108 | N187: МТРиЭ ЧО, Пост.от 17.05.2018 г. №28/1, п.505
A188: 164 | B188: 408-0008 | C188: Щебень из природного камня для строительных работ марка 1200, фракция 40-70 мм | D188: м3 | E188: 1.4364 | F188: 126 | G188: 180.98 | H188: 398 | I188: 571.69 | J188: 563,88 | K188: 809.96 | M188: 4.475411648 | N188: МТРиЭ ЧО, Пост.от 17.05.2018 г. №28/1, п.503
A189: 165 | B189: 408-0009 | C189: Щебень из природного камня для строительных работ марка 1000, фракция 5(3)-10 мм | D189: м3 | E189: 0.0612 | F189: 131 | G189: 8.02 | H189: 469 | I189: 28.7 | J189: 636,3 | K189: 38.94 | M189: 4.855361596 | N189: МТРиЭ ЧО, Пост.от 17.05.2018 г. №28/1, п.506
A190: 166 | B190: 408-0010 | C190: Щебень из природного камня для строительных работ марка 1000, фракция 10-20 мм | D190: м3 | E190: 0.0612 | F190: 131 | G190: 8.02 | H190: 509 | I190: 31.15 | J190: 677,1 | K190: 41.44 | M190: =IF(ISNUMBER(K190/G190),IF(NOT(K190/G190=0),K190/G190, " "), " ") -> 5.167082294 | N190: МТРиЭ ЧО, Пост.от 17.05.2018 г. №28/1, п.505
A191: 167 | B191: 408-0011 | C191: Щебень из природного камня для строительных работ марка 1000, фракция 20-40 мм | D191: м3 | E191: 0.2604 | F191: 126 | G191: 32.81 | H191: 383 | I191: 99.74 | J191: 548,58 | K191: 142.85 | M191: 4.353855532 | N191: МТРиЭ ЧО, Пост.от 17.05.2018 г. №28/1, п.504
A192: 168 | B192: 408-0015 | C192: Щебень из природного камня для строительных работ марка 800, фракция 20-40 мм | D192: м3 | E192: 0.003 | F192: 122 | G192: 0.37 | H192: 397.26 | I192: 1.19 | J192: 563,13 | K192: 1.69 | M192: 4.567567568 | N192: Среднее (06.01.030, 06.01.100, 06.01.118.3)
A193: 169 | B193: 408-0018 | C193: Щебень из природного камня для строительных работ марка 600, фракция 10-20 мм | D193: м3 | E193: 0.87 | F193: 125 | G193: 108.75 | H193: 478.16 | I193: 416 | J193: 645,64 | K193: 561.71 | M193: 5.165149425 | N193: Среднее (06.01.118.2, 06.01.090, 06.01.0295)
A194: 170 | B194: 408-0020 | C194: Щебень из природного камня для строительных работ марка 600, фракция 40-70 мм | D194: м3 | E194: 14.614 | F194: 122 | G194: 1782.91 | H194: 370.88 | I194: 5420.04 | J194: 536,22 | K194: 7836.32 | M194: 4.395241487 | N194: Среднее (06.01.029, 06.01.118.4, 06.01.031, 06.01.110)
A195: 171 | B195: 411-0001 | C195: Вода... | D195: м3 | E195: 2.0711 | F195: 3,11 | G195: 6.45 | I195: 46.07 | J195: 22,11 | K195: 46.07 | M195: 7.142635659 | N195: ...
A196: 172 | B196: 411-0001 | C196: - Вода | D196: м3 | E196: 0.0216 | F196: 3,11 | G196: 0.07 | H196: 22.11 | I196: 0.48 | J196: 22,11 | K196: 0.48 | M196: 6.857142857 | N196: Среднее (26.01.015, 26.01.017)
A197: 173 | B197: 411-0001 | C197: - Вода | D197: м3 | E197: 0.0665 | F197: 3,11 | G197: 0.21 | H197: 26.36 | I197: 1.75 | J197: 26,36 | K197: 1.75 | M197: 8.333333333 | N197: Среднее (26.01.015, 26.01.017)
A198: 174 | B198: 411-0001 | C198: - Вода... | D198: м3 | E198: 1.983 | F198: 3,11 | G198: 6.17 | H198: 22.11 | I198: 43.84 | J198: 22,11 | K198: 43.84 | M198: 7.10534846 | N198: ...
A199: 175 | B199: 411-0001 | C199: - Вода | D199: м3 | E199: 1.74 | F199: 3,11 | G199: 5.41 | H199: 22.11 | I199: 38.47 | J199: 22,11 | K199: 38.47 | M199: 7.11090573
A200: 176 | B200: 411-0001 | C200: - Вода | D200: м3 | E200: 0.243 | F200: 3,11 | G200: 0.76 | H200: 22.11 | I200: 5.37 | J200: 22,11 | K200: 5.37 | M200: 7.065789474 | N200: Среднее (26.01.015, 26.01.017)
A201: 177 | B201: 411-0002 | C201: Вода водопроводная | D201: м3 | E201: 0.0001 | F201: 3,11 | H201: 22.11 | J201: 22,11 | N201: Среднее (26.01.015, 26.01.017)
A202: 178 | B202: 507-2431 | C202: Узлы трубопроводов с установкой необходимых деталей из бесшовных труб, сталь 20, диаметром условного прохода 50 мм, толщиной стенки 3,0 мм | D202: т | E202: 0.0005 | F202: 24940 | G202: 12.47 | H202: 82040 | I202: 41.02 | J202: 83966,81 | K202: 41.98 | M202: 3.366479551 | N202: Среднее (100.05.010,20.07.010*0, 20.07.0121)
A203: 179 | B203: 507-2450 | C203: Узлы трубопроводов с установкой необходимых деталей из бесшовных труб, сталь 20, диаметром условного прохода 100 мм, толщиной стенки 4,0 мм | D203: т | E203: 0.001 | F203: 19270 | G203: 19.27 | H203: 46324.06 | I203: 46.32 | J203: 47536,55 | K203: 47.54 | M203: 2.467047224 | N203: Код ОКП 14 69 00
... 51 more rows
